Cogmind - Beta 17.1 @@@ ROGUE MODE // 2026.09.16 @ 20:47:35 Player: Clog Result: Escaped! Performance ------------- Evolutions (9) 4500 Regions Visited (31) 6200 Robots Destroyed (496) 2480 Value Destroyed (25423) 25423 Prototype IDs (56) 1120 Alien Tech Used (0) 0 Bonus (16695) 16695 TOTAL SCORE: 56418 Bonus ------- High Alert Combat Kills 2762 Follower Combat Kills 3156 Entered Garrisons 1600 Used RIF Installer 5000 Entered DSFs 500 Aligned with FarCom 300 Built Enhanced Grunts 300 A7 Reached Mainframe 300 Win 3000 Friendly Fire -223 Cogmind --------- Core Integrity 742/1600 Matter 292/300 Energy 413/440 System Corruption 35% Temperature Cool (13) Movement Treading (150) Location To Epsilon Eridani Parts ------- > --- POWER (2) -------- Quantum Reactor Light Quantum Reactor > --- PROPULSION (8) --- Improved Heavy Treads Improved Heavy Treads Biometal Heavy Treads Experimental Biometal Heavy Treads > --- UTILITY (11) ----- Advanced Heat Sink Advanced Heat Sink Advanced Heat Sink Advanced Heat Sink Advanced Heat Sink Medium Storage Unit Advanced Target Analyzer Armor Integrity Analyzer Quantum Capacitor Relay Coupler [NC] (45) > --- WEAPON (4) ------- Phase Gun Enhanced Nova Cannon Enhanced Nova Cannon > --- INVENTORY (10) --- Light Antimatter Reactor Quantum Reactor Heavy Siege Treads Advanced Coolant Injector Enhanced Nova Cannon Micro-nuke Launcher Advanced Remote Datajack Peak State ------------ > --- POWER ------------ Reinforced Fission Core Quantum Reactor > --- PROPULSION ------- Biometal Heavy Treads Biometal Heavy Treads Advanced Heavy Siege Treads Advanced Heavy Siege Treads > --- UTILITY ---------- Advanced Cooling System Advanced Cooling System Large Storage Unit Energy Well Armor Integrity Analyzer Layered Medium Armor Plating Layered Medium Armor Plating Centrium Medium Armor Plating Graphene Brace Relay Coupler [NC] Advanced Dynamic Insulation System > --- WEAPON ----------- Enhanced Quantum Rifle Enhanced Quantum Rifle Enhanced Quantum Rifle Nova Cannon > --- INVENTORY -------- Reinforced Fission Core Quantum Reactor Medium Treads Advanced Medium Treads Advanced Heat Sink Wave Gun Enhanced Quantum Rifle Disruptor Cannon HERF Cannon Matter Neutralizer Firepult Micro-nuke Launcher Advanced Remote Datajack [Rating: 189] Favorites ----------- Power Reinforced Fission Core Engine Heavy Deuterium Engine Power Core Reinforced Fission Core Reactor Quantum Reactor Propulsion Light Treads Treads Light Treads Leg Centrium Leg Hover Unit Gyrokinetic Inverter Flight Unit Improved Flight Unit Utility Large Storage Unit Device Advanced Cooling System Storage Large Storage Unit Processor Core Analyzer Hackware Relay Coupler [NC] Protection Improved Heavy Armor Plating Weapon Enhanced Quantum Rifle Energy Gun Enhanced Quantum Rifle Energy Cannon Beam Cannon Ballistic Gun Gauss Rifle Ballistic Cannon Light Cannon Launcher Rocket Launcher Special Weapon Improved Remote Datajack Impact Weapon Powered Hammer Slashing Weapon Ionic Axe Piercing Weapon Lance Special Melee Weapon Datajack Build | -11 -10 -10 -10 -9 -8 -8 -8 -8 -8 -8 -7 -7 -7 -6 -6 -5 -5 -5 -5 -5 -5 -4 -4 -4 -3 -3 -3 -3 -2 -2 -1 ------- Run | Yrd Mat Min Exi Min Mat Gar Mat Gar Mat Gar Fac Gar Fac Fac Gar Fac Ext Cet Arc Hub Gar Fac Upp Upp Res Gar Res Gar Res DSF Acc Slots Evolved 18 | . . . . . 4 . . . . . 2 . . 2 . 2 . . . . . 2 . . 2 . . . 2 . 2 Power 1 | . . . . . . . . . . . . . . . . 1 . . . . . . . . . . . . . . . Propulsion 6 | . . . . . 1 . . . . . 1 . . . . . . . . . . 1 . . 1 . . . . . 2 Utility 9 | . . . . . 2 . . . . . 1 . . 1 . 1 . . . . . 1 . . 1 . . . 2 . . Weapon 2 | . . . . . 1 . . . . . . . . 1 . . . . . . . . . . . . . . . . . Parts Attached 334 | 2 9 . 2 2 10 16 14 19 3 13 8 15 12 8 4 16 44 3 . . 27 8 6 4 . 22 4 6 2 1 54 Power 29 | . 1 . . . 1 3 1 1 . 1 . 1 2 . 1 3 4 1 . . 2 . . . . 3 1 . . . 3 Engine 10 | . 1 . . . 1 2 1 . . 1 . . 1 . . . 2 1 . . . . . . . . . . . . . Core 11 | . . . . . . 1 . 1 . . . 1 1 . . 2 2 . . . 1 . . . . . 1 . . . 1 Reactor 8 | . . . . . . . . . . . . . . . 1 1 . . . . 1 . . . . 3 . . . . 2 Propulsion 77 | . 2 . . . 3 3 3 7 1 2 2 4 . 1 . 4 16 1 . . 9 2 2 . . 3 . . . . 12 Treads 45 | . 2 . . . 2 3 3 7 1 2 2 4 . 1 . . 3 . . . . . . . . 3 . . . . 12 Leg 23 | . . . . . . . . . . . . . . . . . 10 1 . . 9 2 1 . . . . . . . . Wheel . | . . . . . . . . . . . . . . . . . . . . . . . . . . . . . . . . Hover 7 | . . . . . . . . . . . . . . . . 4 3 . . . . . . . . . . . . . . Flight 2 | . . . . . 1 . . . . . . . . . . . . . . . . . 1 . . . . . . . . Utility 122 | 1 2 . . 1 4 6 2 8 2 7 4 5 . 4 . 7 14 . . . 8 3 3 2 . 10 3 4 2 . 20 Device 48 | 1 . . . 1 1 2 . 1 . . . 1 . 1 . 3 7 . . . 7 1 1 . . 5 2 1 . . 13 Storage 9 | . 2 . . . 1 . . . . . . . . . . 3 1 . . . . . . 1 . . . . . . 1 Processor 7 | . . . . . . . . . . . 2 . . 1 . . . . . . . . . . . 1 1 . 1 . 1 Hackware 24 | . . . . . 1 2 . 4 2 6 1 2 . . . . 2 . . . . 1 . . . 2 . 1 . . . Protection 34 | . . . . . 1 2 2 3 . 1 1 2 . 2 . 1 4 . . . 1 1 2 1 . 2 . 2 1 . 5 Artifact . | . . . . . . . . . . . . . . . . . . . . . . . . . . . . . . . . Weapon 106 | 1 4 . 2 1 2 4 8 3 . 3 2 5 10 3 3 2 10 1 . . 8 3 1 2 . 6 . 2 . 1 19 Energy Gun 33 | . 3 . . . 1 . 2 . . 2 . . 4 . . . 3 . . . 2 2 . 1 . 5 . 2 . 1 5 Energy Cannon 12 | . 1 . . . . . 1 . . . . . . . 1 1 . . . . . . . 1 . 1 . . . . 6 Ballistic Gun 39 | 1 . . . . 1 3 5 2 . 1 . 4 2 3 2 . 6 1 . . 4 1 1 . . . . . . . 2 Ballistic Cannon 4 | . . . 1 . . . . . . . . . . . . . . . . . . . . . . . . . . . 3 Launcher 4 | . . . . 1 . . . . . . . 1 1 . . . . . . . . . . . . . . . . . 1 Special Weapon 4 | . . . . . . . . . . . 1 . 1 . . 1 . . . . 1 . . . . . . . . . . Impact Weapon 3 | . . . . . . 1 . . . . . . 2 . . . . . . . . . . . . . . . . . . Slashing Weapon 2 | . . . . . . . . . . . . . . . . . . . . . . . . . . . . . . . 2 Piercing Weapon 2 | . . . . . . . . . . . . . . . . . 1 . . . 1 . . . . . . . . . . Special Melee Weapon 3 | . . . 1 . . . . 1 . . 1 . . . . . . . . . . . . . . . . . . . . Unidentified Prototypes 20 | . 1 . . 1 2 . 2 . . . . . 3 1 . 1 1 1 . . 1 . . . . . . 1 1 . 4 Corrupted Parts 6 | . . . . . . . . . . . . 4 . . . . 1 . . . . . 1 . . . . . . . . System Corruption 41 | . . . . . . . . . . . . 31 . . . . 9 . . . . . 1 . . . . . . . . Parts Lost 125 | . 3 . . 1 . 3 2 6 . 5 1 3 . 1 13 6 10 1 . . 5 7 2 3 . 8 . 2 . . 43 Power 11 | . 1 . . . . . . . . 1 . . . . 1 1 1 1 . . 1 . . 1 . 1 . . . . 2 Propulsion 21 | . . . . . . 1 2 3 . . . . . . 2 1 3 . . . . 1 . . . . . . . . 8 Utility 52 | . . . . 1 . 2 . 2 . 1 . 1 . 1 5 1 3 . . . 2 2 2 2 . 4 . 1 . . 22 Weapon 41 | . 2 . . . . . . 1 . 3 1 2 . . 5 3 3 . . . 2 4 . . . 3 . 1 . . 11 Highest Loss Streak 11 | . 3 . . 1 . 2 1 3 . 2 1 1 . 1 8 5 5 1 . . 1 3 2 3 . 2 . 2 . . 11 To Critical Strikes 2 | . . . . . . . . . . . . . . . 1 . . . . . 1 . . . . . . . . . . Average Backups 12 | 6 10 13 14 13 15 18 16 13 13 13 13 11 11 11 11 5 6 10 11 12 13 13 12 13 13 12 12 12 13 13 10 Power 1 | 1 . 1 1 1 1 1 1 1 1 1 1 1 . 1 . 1 1 1 1 1 1 2 2 1 1 1 2 2 2 2 1 Propulsion 1 | 4 1 . . . . 1 1 1 2 2 1 1 1 1 . 1 2 2 3 3 4 3 4 4 4 1 2 1 1 1 . Utility 2 | . 2 3 3 3 4 5 4 2 3 3 3 1 1 1 1 . . 2 3 3 2 3 2 2 2 2 2 2 3 2 1 Weapon 5 | 1 5 8 9 8 8 10 9 6 6 5 6 5 6 7 7 2 1 4 3 4 3 3 3 4 5 5 5 5 6 6 6 Tool/Special . | . . . . . . . . . . . . . . . . . . . . . . . . . . . . . . . . Unused Backups 57 | . 9 . . 1 . 5 2 . . . . 3 3 . 3 1 4 . . . 5 . 1 . . 5 2 2 . . 11 Power 8 | . 1 . . . . . . . . . . . 1 . 1 1 . . . . . . . . . 1 . 1 . . 2 Propulsion 20 | . 4 . . . . . . . . . . 2 . . . . 4 . . . 4 . 1 . . 3 . 1 . . 1 Utility 9 | . 2 . . . . 2 1 . . . . . 1 . 1 . . . . . . . . . . . 1 . . . 1 Weapon 17 | . 2 . . 1 . 3 1 . . . . 1 . . 1 . . . . . . . . . . 1 1 . . . 6 Tool/Special 3 | . . . . . . . . . . . . . 1 . . . . . . . 1 . . . . . . . . . 1 Average Slot Usage (%) 85 | . 99 100 92 95 73 94 97 97 100 95 98 79 75 78 68 41 92 89 100 100 94 91 87 89 90 80 79 81 81 84 75 Engine 4 | . 14 14 14 14 9 8 9 4 . 6 7 . 4 6 2 . 2 9 11 11 1 . . 2 4 1 . . . . . Core 2 | . . . . . . . . 4 9 2 . 6 2 . . 6 6 . . . 4 5 5 1 . . 2 4 4 4 2 Reactor 1 | . . . . . . . . . . . . . . . 3 1 . . . . 2 5 5 5 4 7 6 4 4 4 4 Treads 14 | . 16 28 28 28 24 26 26 26 27 27 29 17 15 13 12 . . . . . . . . . . 12 14 14 13 13 16 Leg 5 | . 11 . . . . . . . . . . . . . . . 16 23 23 23 23 25 25 26 23 3 . . . . . Device 12 | . 14 14 14 9 . 16 18 17 9 6 2 5 7 6 5 3 16 17 17 17 22 16 11 15 14 17 18 16 17 17 14 Storage 7 | . 14 14 14 14 9 9 9 9 9 9 7 7 7 6 5 3 4 5 5 5 5 5 5 5 9 9 9 4 4 6 7 Processor 2 | . . . . . . . . . . . 6 7 7 6 5 . . . . . . . . . . . . 4 4 4 5 Hackware 3 | . . . . . . 2 . 2 14 9 12 2 . . . . 7 5 5 5 2 4 5 5 4 4 4 5 4 4 4 Protection 6 | . . . . . 6 2 7 5 3 8 7 7 7 12 5 2 5 11 11 11 5 9 10 7 9 4 3 5 12 13 5 Energy Gun 6 | . 6 14 2 . 6 . 1 9 5 12 15 1 6 2 . . 5 . . . 6 8 10 10 9 16 18 18 17 17 6 Energy Cannon 1 | . 4 14 7 14 6 7 . . . . . . . . . 1 . . . . . . . . . . . . . . 4 Ballistic Gun 10 | . 16 . . . 4 12 25 17 18 9 5 19 15 19 22 2 9 7 17 17 14 9 7 7 9 . . . . . 2 Peak Build Rating 189 | 7 12 9 11 18 21 29 36 33 33 33 32 65 69 83 80 75 92 88 89 89 133 140 138 136 123 158 151 159 169 168 189 Average Rating 77 | 6 8 9 9 10 16 21 30 29 30 27 29 58 67 78 69 41 78 76 88 89 106 127 119 116 122 142 148 149 158 165 163 On Entrance 70 | 6 7 9 9 11 10 21 29 32 32 30 27 30 65 69 78 7 35 83 88 89 89 129 115 120 122 123 151 146 156 159 168 Avg Prop Armor Cover (%) 3 | . . . . . . . . 6 . . . . . . . 2 2 . . . . . . . . 6 . . . . . Naked Turns . | . . . . . . . . . . . . . . . . . . . . . . . . . . . . . . . . Heaviest Build 146 | 13 30 28 30 30 61 64 75 49 45 54 43 52 58 76 72 40 72 75 75 75 123 122 131 114 102 112 114 112 108 115 146 Greatest Support 310 | 20 40 40 40 40 60 60 60 60 60 60 80 150 150 150 150 48 83 83 83 83 120 145 150 150 150 235 235 235 235 235 310 Greatest Overweight (x) 3 | . . . . . 1 1 1 1 . . . . . . 1 1 3 . . . 1 . . . . 1 . . . . 1 Average Overweight (x) . | . . . . . . . . . . . . . . . . . . . . . . . . . . . . . . . . Largest Inventory Capacity 20 | 8 15 15 15 15 20 20 20 15 15 15 15 15 15 15 15 8 15 15 15 15 15 15 15 15 15 15 15 15 15 15 15 Average Capacity 14 | 8 12 15 15 15 18 20 18 15 15 15 15 15 15 15 13 7 7 15 15 15 15 15 15 15 15 15 15 15 15 15 13 Most Carried 20 | 7 13 14 15 15 20 20 20 15 15 15 15 15 15 15 15 8 8 15 13 13 15 15 15 15 15 15 15 15 15 15 15 Average Carried 13 | 6 10 13 14 14 16 19 17 14 14 14 14 14 14 14 13 6 7 11 12 13 14 14 13 14 14 14 14 14 15 14 11 Final Capacity 20 | 8 15 15 15 15 20 20 15 15 15 15 15 15 15 15 15 8 15 15 15 15 15 15 15 15 15 15 15 15 15 15 10 Final Carried 20 | 6 13 14 15 15 19 20 15 15 15 15 15 15 15 14 14 8 7 11 13 13 15 15 15 14 15 15 15 15 15 15 8 Class Distribution -------------------- 49% | Scavenger-Tank 24% | Scavenger-Skirmisher 11% | Mutant 5% | Scavenger-Mutant 4% | Tank Dominant Class ---------------- Mutant | -10/Materials Mutant | -10/Mines Mutant | -10/Exiles Mutant | -9/Mines Scavenger-Skirmisher | -8/Materials Scavenger-Skirmisher | -8/Garrison Scavenger-Skirmisher | -8/Materials Scavenger-Skirmisher | -8/Garrison Scavenger-Skirmisher | -8/Materials Scavenger-Skirmisher | -8/Garrison Scavenger-Skirmisher | -7/Factory Scavenger-Tank | -7/Garrison Scavenger-Tank | -7/Factory Scavenger-Tank | -6/Factory Tank | -6/Garrison Mutant | -5/Factory Scavenger-Skirmisher | -5/Extension Scavenger-Mutant | -5/Cetus Scavenger-Tank | -5/Archives Scavenger-Tank | -5/Hub_04(d) Scavenger-Tank | -5/Garrison Scavenger-Tank | -4/Factory Scavenger-Tank | -4/Upper Caves Scavenger-Tank | -4/Upper Caves Scavenger-Tank | -3/Research Scavenger-Tank | -3/Garrison Scavenger-Tank | -3/Research Scavenger-Tank | -3/Garrison Scavenger-Tank | -2/Research Scavenger-Tank | -2/DSF Scavenger-Tank | -1/Access Resources | -11 -10 -10 -10 -9 -8 -8 -8 -8 -8 -8 -7 -7 -7 -6 -6 -5 -5 -5 -5 -5 -5 -4 -4 -4 -3 -3 -3 -3 -2 -2 -1 ----------- Run | Yrd Mat Min Exi Min Mat Gar Mat Gar Mat Gar Fac Gar Fac Fac Gar Fac Ext Cet Arc Hub Gar Fac Upp Upp Res Gar Res Gar Res DSF Acc Matter Collected 14823 | 200 351 . . . 324 760 594 880 79 650 311 759 1076 1171 1111 616 964 154 109 60 1160 446 183 238 . 417 85 276 . 15 1834 Remotely 1485 | . . . . . . . . . . . . . . 346 780 . . . . . . . . . . . . . . . 359 Salvage Created 25043 | 18 424 . . 24 300 603 533 542 80 294 192 1253 1485 1537 1267 786 936 96 127 58 2063 1317 539 945 . 1443 419 2012 . . 5750 Parts 1062 | 4 36 . . 4 19 36 25 30 5 28 11 56 88 71 36 19 59 4 7 5 69 36 22 15 . 45 21 80 . . 231 Haulers Intercepted 8 | . 2 . . . . . . . . . . . 3 . . 1 1 . . . . . . . . . . . . . 1 Recyclers Shooed 16 | . . . . 1 . . . . . . . . 2 2 . 4 . . . . . 4 . . . . . . . . 3 Parts Field Recycled . | . . . . . . . . . . . . . . . . . . . . . . . . . . . . . . . . Retrieved Matter . | . . . . . . . . . . . . . . . . . . . . . . . . . . . . . . . . Parts Self-Destructed 24 | . . . . . . . . . . . . . . . . . . . . . . . 16 8 . . . . . . . Prevented 9 | . . . . . . . . . . . . . . . . . . . . . . . 3 6 . . . . . . . Parts Restored . | . . . . . . . . . . . . . . . . . . . . . . . . . . . . . . . . Kills | -11 -10 -10 -10 -9 -8 -8 -8 -8 -8 -8 -7 -7 -7 -6 -6 -5 -5 -5 -5 -5 -5 -4 -4 -4 -3 -3 -3 -3 -2 -2 -1 ------- Run | Yrd Mat Min Exi Min Mat Gar Mat Gar Mat Gar Fac Gar Fac Fac Gar Fac Ext Cet Arc Hub Gar Fac Upp Upp Res Gar Res Gar Res DSF Acc Combat Hostiles Destroyed 460 | . 10 . . 3 5 22 10 20 3 12 3 21 21 26 72 10 9 1 1 1 38 15 13 13 . 19 6 35 . . 71 Melee 1 | . . . . . . . . . . . . . . . . . . 1 . . . . . . . . . . . . . Guns 269 | . 9 . . . 3 6 9 11 3 8 2 14 17 18 52 2 9 . 1 1 18 9 9 7 . 12 6 23 . . 20 Cannons 51 | . . . . . 1 11 . . . 1 . . 1 2 . 1 . . . . 2 . . 1 . . . . . . 31 AOE 92 | . 1 . . 3 1 5 . 9 . 3 . 7 3 6 18 5 . . . . 12 1 4 1 . 1 . 3 . . 9 Classes Destroyed 24 | 1 6 . . . 3 . . 2 . 1 . 1 1 . 1 . 1 . . . . 2 . 1 . . 1 2 . . 1 Worker 23 | . 1 . . . . . 1 . . . 1 . 6 2 . 2 1 . . . . 2 . . . . . . . . 7 Builder 25 | . . . . . 1 . 1 . . . . . 4 1 . 5 5 . . . . 2 . . . . . . . . 6 Tunneler 3 | 1 . . . 1 . . . . . . . . . . . . . . . . . . . . . . . . . . 1 Hauler 8 | . 2 . . . . . . . . . . . 3 . . 1 1 . . . . . . . . . . . . . 1 Recycler 14 | . . . . . . . . . . . . . 3 2 . 2 . . . . . 2 . . . . . . . . 5 Carrier 1 | . . . . . . . . . . . . . . . . . . . . . . . . . . . . . . . 1 Mechanic 1 | . . . . . . . . . . . . . . . . . . . . . . 1 . . . . . . . . . Operator 6 | . 1 . . . 1 . 1 . . . . . . 1 . . 1 . 1 . . . . . . . . . . . . Drone 7 | . . . . . . . . . . . . . . . . . . . . . . . . . . . . 7 . . . Watcher 10 | . 3 . . . . 1 . . . . . 1 . 2 . . 1 1 . . . . . . . . . . . . 1 Swarmer 116 | . 7 . . 3 . 10 2 8 2 4 . 13 . 7 11 9 1 . . . 10 . 10 1 . 3 . 5 . . 10 Cutter 8 | . . . . . . . . . . 1 . 3 . . 2 . . . . . 2 . . . . . . . . . . Grunt 118 | . 3 . . . 3 10 4 4 . . . 2 12 10 10 . 3 . . . 14 1 . 8 . 4 2 11 . . 17 Brawler 5 | . . . . . . . . 1 . . . . 1 . . . . . . . 1 . . 2 . . . . . . . Duelist 2 | . . . . . . . . . . . . . . . . . . . . . . . . . . . . . . . 2 Protector 1 | . . . . . . . . . . . . . . . . . . . . . . . . 1 . . . . . . . Sentry 37 | . . . . . 1 2 3 3 1 1 1 . 1 2 . . 3 . 1 . 7 2 1 1 . 3 . . . . 4 Specialist 9 | . . . . . . . . . . . . 3 . . . . . . . . . . . . . 4 . . . . 2 Hunter 43 | . . . . . 1 . 1 . . 1 1 . 1 2 . . 1 1 . 1 2 6 2 . . 4 2 4 . . 13 Programmer 53 | . . . . . . . . 4 . 5 1 . 6 5 . 1 . . . . 1 5 . . . . 1 3 . . 21 Heavy 1 | . . . . . . . . . . . . . . . . . . . . . . . . . . . 1 . . . . Q-Series 4 | . . . . . . . . . . . . . . . . . . . . . . . . . . . . 4 . . . Behemoth 6 | . . . . . . . . . . . . . . . . . 1 . . . 1 . . . . 1 . 1 . . 2 Assembled 49 | . . . . . . . . . . . . . . . 49 . . . . . . . . . . . . . . . . Savage 1 | . . . . . . . . . . . . . . . . . 1 . . . . . . . . . . . . . . Butcher 1 | . . . . . . . . . . . . . . . . . . . . . . 1 . . . . . . . . . Best Kill Streak 33 | 1 3 . . 4 3 5 4 4 3 4 1 4 5 7 33 4 3 1 1 1 9 12 5 6 . 4 2 6 . . 12 Combat Bots Only 33 | . 3 . . 3 3 4 2 4 3 4 1 4 3 5 33 4 2 1 1 1 9 7 5 6 . 4 2 6 . . 10 Max Kills in Single Turn 6 | 1 1 . . 2 2 2 2 4 1 1 1 2 4 2 5 3 2 1 1 1 4 2 3 2 . 2 1 2 . . 6 Gunslinging 1 | . . . . . . 1 1 1 . . . . . . 1 . . . . . 1 . 1 . . 1 . 1 . . . Exploded 5 | . 1 . . 2 1 2 . 4 . 1 . 2 3 2 5 2 . . . . 4 1 3 1 . 1 . 1 . . 4 Melee 1 | . . . . . . . . . . . . . . . . . . 1 . . . . . . . . . . . . . Uniques/NPCs Destroyed . | . . . . . . . . . . . . . . . . . . . . . . . . . . . . . . . . Combat | -11 -10 -10 -10 -9 -8 -8 -8 -8 -8 -8 -7 -7 -7 -6 -6 -5 -5 -5 -5 -5 -5 -4 -4 -4 -3 -3 -3 -3 -2 -2 -1 -------- Run | Yrd Mat Min Exi Min Mat Gar Mat Gar Mat Gar Fac Gar Fac Fac Gar Fac Ext Cet Arc Hub Gar Fac Upp Upp Res Gar Res Gar Res DSF Acc Hostile Shots Fired 3224 | . 73 . . 9 18 107 59 134 25 90 24 66 117 149 202 105 118 20 10 25 161 196 71 90 . 214 13 312 . 1 815 Missed 884 | . 18 . . 2 6 34 18 32 10 27 10 19 34 44 44 28 33 9 6 6 69 92 29 38 . 59 1 47 . . 169 Hits 2340 | . 55 . . 7 12 73 41 102 15 63 14 47 83 105 158 77 85 11 4 19 92 104 42 52 . 155 12 265 . 1 646 Melee 47 | . . . . . . . . . . 3 . . . . 25 . . . . . 2 1 . 1 . . . 14 . . 1 Projectile 2293 | . 55 . . 7 12 73 41 102 15 60 14 47 83 105 133 77 85 11 4 19 90 103 42 51 . 155 12 251 . 1 645 AOE 7 | . . . . . . . . . . 1 . 1 . . 1 . . . . . 1 2 . . . . . . . . 1 Critical Strikes 98 | . 1 . . . . 2 . 9 1 2 1 1 7 7 4 1 3 1 . 1 4 5 1 2 . 5 1 8 . . 31 Actively Blocked 36 | . . . . . . . . . . . . . . . . . . . . . . 4 1 2 . 5 1 8 . . 15 Part Disruptions 3 | . . . . . . . . 1 . . . . . . 1 . . . . . . . . . . . . 1 . . . Actively Blocked 1 | . . . . . . . . . . . . . . . . . . . . . . . . . . . . 1 . . . Damage Taken 41610 | . 689 . . 61 243 957 648 1556 175 972 265 768 1017 1397 2764 1313 1806 198 105 354 1670 1884 657 1114 . 2330 268 3438 . 231 14730 Core 3379 | . 169 . . 16 17 144 96 148 46 35 61 106 64 67 265 295 168 14 49 38 167 98 56 . . 163 . 239 . . 858 Absorbed by Shields 3957 | . . . . . . 32 . . . . . . . . 53 . 99 90 . . 307 155 . . . 1017 . 2204 . . . Reduced by Siege Mode 2553 | . . . . . . . . . . . . 35 44 28 105 . . . . . . . . . . 183 41 664 . . 1453 Redirected to Shielding 179 | . . . . . . . . . . . . . . . . . . . . . . . 9 59 . . . . . . 111 Ignored by Resistances 193 | . . . . . . . . . . . . . . . . 45 99 . . . . . . . . . . . . . 49 Regen/Repaired (Parts) 2249 | . . . . . . . . . . . 104 . . . . . . . . . . 512 . . . . 604 1029 . . . Core Remaining (%) 59 | 100 . . . 26 . . . . . 11 . . 67 . 60 . . . . . 26 . . 86 . . . 69 . 100 46 Volleys Fired 1224 | 2 49 . . 3 12 81 35 53 3 40 18 47 78 66 79 30 61 8 4 8 80 61 17 28 . 63 16 80 . . 202 Largest 4 | 2 2 . . 1 3 3 3 3 3 3 3 3 3 4 4 1 3 3 3 3 4 4 3 4 . 4 4 4 . . 4 Hottest 382 | 40 100 . . 33 135 113 124 117 112 140 140 140 128 158 296 250 189 99 101 101 250 250 250 380 . 286 291 291 . . 382 Shots Fired 3227 | 4 97 . . 3 35 192 93 133 9 89 28 115 189 190 272 30 151 24 12 24 199 153 41 84 . 170 51 259 . . 580 Gun 2646 | 4 87 . . . 27 84 90 122 9 82 16 107 182 182 263 11 151 24 12 24 180 140 37 79 . 144 50 250 . . 289 Cannon 498 | . 10 . . . 8 102 3 . . 1 4 . 4 4 2 19 . . . . 14 10 4 5 . 15 . 7 . . 286 Launcher 53 | . . . . 3 . 6 . 11 . 6 . 8 3 4 7 . . . . . . . . . . . . . . . 5 Special 30 | . . . . . . . . . . . 8 . . . . . . . . . 5 3 . . . 11 1 2 . . . Kinetic 1631 | 4 68 . . . 7 129 83 79 6 37 4 102 120 176 263 11 96 24 12 24 146 69 12 29 . 9 . . . . 121 Thermal 1397 | . 19 . . . 4 57 4 43 3 45 12 5 62 6 2 19 49 . . . 48 81 17 32 . 142 50 253 . . 444 Explosive 53 | . . . . 3 . 6 . 11 . 6 . 8 3 4 7 . . . . . . . . . . . . . . . 5 Electromagnetic 116 | . 10 . . . 24 . 6 . . 1 4 . 4 4 . . 6 . . . . . 12 23 . 8 . 4 . . 10 Robot Hit Streak 61 | 2 15 . . . 6 6 6 11 5 9 5 7 24 16 11 6 12 13 5 4 13 10 10 8 . 21 18 61 . . 29 Robot Miss Streak 12 | 1 7 . . 1 4 5 4 3 1 6 1 5 7 3 5 5 5 2 4 6 8 5 12 3 . 9 3 6 . . 6 Penetration Max 2 | . . . . . . . 1 1 . . . . . 2 1 . 1 1 . 1 1 1 . . . . . . . . 1 Secondary Targets 63 | . 1 . . . 1 1 1 3 . 3 . 3 1 . 19 . 1 . 1 . 2 2 3 2 . 5 1 11 . . 2 Max Gunslinging Chain 2 | . 1 . . . 1 1 1 1 . 1 . 1 1 . 2 . 1 . 1 . 1 1 1 1 . 1 1 1 . . 1 Shots Hit Robots 1992 | 3 48 . 4 . 25 92 54 85 9 52 23 70 109 124 154 25 103 20 7 11 113 80 15 47 . 129 40 179 . . 371 Core Hits 1160 | 2 23 . . 4 16 35 22 42 3 24 6 45 78 74 127 16 42 11 6 3 92 44 22 39 . 49 23 106 . . 206 Critical Kills 17 | . 1 . . . . . 1 . . . . . 1 . 3 2 2 . . 1 1 1 . . . . . . . . 4 Critical Parts Destroyed 24 | . . . . . . 1 2 . . . . 4 . 1 2 1 1 . . 2 4 1 . . . . . . . . 5 Critical Strikes 65 | . 1 . . . . 2 3 4 . 2 . 4 1 1 5 3 6 . . 3 5 2 . . . 5 . 2 . . 16 Burn 18 | . . . . . . . . 4 . 2 . . . . . . 3 . . . . . . . . 5 . 2 . . 2 Meltdown 4 | . 1 . . . . . . . . . . . . . . 1 . . . . . . . . . . . . . . 2 Destroy 29 | . . . . . . 1 3 . . . . . 1 . 4 . 3 . . 3 5 2 . . . . . . . . 7 Blast 6 | . . . . . . 1 . . . . . . . . . . . . . . . . . . . . . . . . 5 Smash 8 | . . . . . . . . . . . . 4 . 1 1 2 . . . . . . . . . . . . . . . Melee Attacks 153 | . . . 4 . . 16 1 15 3 30 6 21 3 10 9 22 10 2 1 . . . . . . . . . . . . Impact 83 | . . . . . . 11 1 . . 4 2 21 3 10 9 22 . . . . . . . . . . . . . . . Slashing . | . . . . . . . . . . . . . . . . . . . . . . . . . . . . . . . . Piercing 13 | . . . . . . . . . . . . . . . . . 10 2 1 . . . . . . . . . . . . Sneak Attacks 28 | . . . 4 . . 4 . 5 . . 4 . . 1 . 8 1 . 1 . . . . . . . . . . . . Combat Hostiles 1 | . . . . . . 1 . . . . . . . . . . . . . . . . . . . . . . . . . Follow-up Attacks . | . . . . . . . . . . . . . . . . . . . . . . . . . . . . . . . . Damage Inflicted 64054 | 38 702 . . 259 571 2005 1217 2627 83 1014 286 2478 2653 3290 4619 1593 3115 698 251 334 4450 2761 706 1626 . 3725 1140 5345 . . 16468 Guns 38768 | 38 598 . . . 390 628 1140 1745 79 674 202 839 2153 2206 2632 88 2797 634 169 334 2581 1937 383 979 . 2881 1140 4555 . . 6966 Cannons 9820 | . 69 . . . 55 805 56 . . 32 84 . 88 121 45 251 . . . . 314 157 30 147 . 316 . 107 . . 7143 Explosions 12463 | . 34 . . 247 118 466 . 882 . 308 . 529 410 861 1713 368 . . . . 1555 634 293 500 . 528 . 683 . . 2334 Melee 2888 | . . . . . . 106 . . . . . 1110 . 102 225 886 313 64 82 . . . . . . . . . . . . Ramming 115 | . 1 . . 12 8 . 21 . 4 . . . 2 . 4 . 5 . . . . 33 . . . . . . . . 25 Kinetic 19952 | 38 397 . . . 33 943 1027 1276 62 328 65 824 926 2154 2632 88 1753 634 169 334 2156 906 127 260 . 104 . . . . 2716 Thermal 32238 | . 160 . . . 153 490 53 469 17 346 137 15 1227 52 244 619 969 . . . 2294 1822 447 1066 . 3381 1140 5227 . . 11910 Explosive 6947 | . . . . 247 . 466 . 882 . 308 . 529 410 861 1514 . . . . . . . . . . . . . . . 1730 Electromagnetic 1914 | . 144 . . . 377 . 116 . . 32 84 . 88 121 . . 75 . . . . . 132 300 . 240 . 118 . . 87 Impact 2429 | . . . . . . 106 . . . . . 1110 . 102 225 886 . . . . . . . . . . . . . . . Slashing . | . . . . . . . . . . . . . . . . . . . . . . . . . . . . . . . . Piercing 459 | . . . . . . . . . . . . . . . . . 313 64 82 . . . . . . . . . . . . Highest Corruption 39 | . . . . . . . . 6 6 8 . 31 39 5 12 3 12 7 7 7 7 5 6 6 . 1 1 8 . . 35 Average Corruption 10 | . . . . . . . . 4 6 7 . 19 34 1 5 1 5 7 7 7 7 3 5 6 . 1 1 4 . . 13 Corruption Purged 5 | . . . . . . . . . . . . . . . . . 5 . . . . . . . . . . . . . . Corruption Blocked . | . . . . . . . . . . . . . . . . . . . . . . . . . . . . . . . . Effects 620 | . . . . . . . . 39 4 42 . 55 151 20 29 1 49 6 8 2 46 16 17 15 . 13 6 24 . . 77 Message Errors 125 | . . . . . . . . 8 . 8 . 13 33 3 2 . 6 2 2 . 7 4 5 4 . 2 2 7 . . 17 Matter Fused 152 | . . . . . . . . 8 2 11 . 16 29 7 10 1 17 3 3 . 11 3 3 4 . 3 1 7 . . 13 Heat Flow Errors 79 | . . . . . . . . 9 . 7 . 9 22 . 1 . 5 . 1 1 6 3 2 1 . 3 . . . . 9 Energy Discharges 64 | . . . . . . . . 3 . 4 . 5 13 2 1 . 7 1 . . 5 1 4 1 . 2 2 1 . . 12 Parts Rejected 8 | . . . . . . . . 1 . . . . . . 2 . . . . . 2 . . . . . . . . . 3 Parts Fused 5 | . . . . . . . . . 1 . . . 2 . 1 . . . 1 . . . . . . . . . . . . Data Loss (minor) 69 | . . . . . . . . 5 . 7 . 2 22 4 2 . 3 . 1 . 9 3 . 2 . 1 . 3 . . 5 Data Loss (major) 30 | . . . . . . . . 1 1 1 . 3 7 2 1 . 4 . . 1 2 1 2 1 . 1 . 1 . . 1 Misfires 27 | . . . . . . . . 2 . 3 . 1 6 2 3 . 4 . . . 1 . . . . 1 . 3 . . 1 Alerts 5 | . . . . . . . . . . . . 2 1 . 1 . . . . . . . . . . . . 1 . . . Misdirections 3 | . . . . . . . . . . . . . . . . . . . . . . . . . . . . . . . 3 Weapon Failures 53 | . . . . . . . . 2 . 1 . 4 16 . 5 . 3 . . . 3 1 1 2 . . 1 1 . . 13 Overload Shots . | . . . . . . . . . . . . . . . . . . . . . . . . . . . . . . . . Overflow Damage 1505 | . . . . 5 . 80 . 77 . . . 344 . 140 154 403 . . . . 20 . . . . . . 10 . . 272 Projectiles 247 | . . . . . . 1 . . . . . . . . 7 . . . . . 20 . . . . . . . . . 219 Explosions 310 | . . . . 5 . 79 . 77 . . . . . 73 19 . . . . . . . . . . . . 10 . . 47 Melee 948 | . . . . . . . . . . . . 344 . 67 128 403 . . . . . . . . . . . . . . 6 Knockbacks 19 | . . . . . . 4 . . . . . 1 . 1 2 5 . . . . . 1 . . . . . . . . 5 Impact 10 | . . . . . . . . . . . . 1 . 1 2 5 . . . . . 1 . . . . . . . . . Kinetic 9 | . . . . . . 4 . . . . . . . . . . . . . . . . . . . . . . . . 5 Secondary . | . . . . . . . . . . . . . . . . . . . . . . . . . . . . . . . . Self-Inflicted Damage 740 | . 38 . . . 38 13 . 19 . . . 41 . . 81 130 40 . . . 41 4 . 92 . 88 . 10 . . 105 Shots 34 | . 1 . . . 1 1 . 1 . . . 1 . . 2 10 1 . . . 5 1 . 2 . 3 . 2 . . 3 Rammed 11 | . 1 . . 1 1 . 2 . 1 . . . 1 . 2 . . . . . . . . . . . . . . . 2 Targets Rammed 15 | . 2 . . 1 1 . 2 . 1 . . . 1 . 2 . 1 . . . . 2 . . . . . . . . 2 Kicked 3 | . . . . . . . . . . . . . . . . . 1 . . . . 2 . . . . . . . . . Crushed 1 | . 1 . . . . . . . . . . . . . . . . . . . . . . . . . . . . . . Highest Temperature 676 | . 150 . . . 463 294 45 364 . 279 88 256 311 34 371 547 312 . 194 94 413 358 416 305 . 453 11 430 . . 676 Average Temperature 114 | . 51 . . . 152 85 9 93 . 76 35 54 72 9 60 157 87 . 107 67 93 141 143 106 . 109 6 140 . . 148 Received Heat Transfer 5604 | . 72 . . . 99 429 297 549 63 225 39 90 366 366 509 . 589 . 18 90 323 160 9 180 . 308 30 253 . . 540 Effects 60 | . . . . . 5 1 . 5 . . . . . . . 10 2 . . . . . 2 . . . . 2 . . 33 Shutdowns 15 | . . . . . . . . . . . . . . . . 3 . . . . . . 2 . . . . 1 . . 9 Energy Bleed 10 | . . . . . 1 . . . . . . . . . . 2 1 . . . . . . . . . . 1 . . 5 Interference 20 | . . . . . . 1 . 3 . . . . . . . 3 1 . . . . . . . . . . . . . 12 Matter Decay 2 | . . . . . . . . . . . . . . . . 1 . . . . . . . . . . . . . . 1 Short Circuit 3 | . . . . . . . . 2 . . . . . . . . . . . . . . . . . . . . . . 1 Damage (minor) 6 | . . . . . . . . . . . . . . . . 1 . . . . . . . . . . . . . . 5 Damage (major) 4 | . . . . . 4 . . . . . . . . . . . . . . . . . . . . . . . . . . Siege Activations 75 | . . . . . . . . . . . . 7 10 8 4 . . . . . . . . . . 8 5 9 . . 24 Total Turns 1756 | . . . . . . . . . . . . 128 117 147 235 . . . . . . . . . . 180 119 341 . . 489 Longest Duration 137 | . . . . . . . . . . . . 34 33 45 137 . . . . . . . . . . 50 45 109 . . 74 Martial Activations . | . . . . . . . . . . . . . . . . . . . . . . . . . . . . . . . . Shielding Activations . | . . . . . . . . . . . . . . . . . . . . . . . . . . . . . . . . Robots Disrupted . | . . . . . . . . . . . . . . . . . . . . . . . . . . . . . . . . Combat Hostiles . | . . . . . . . . . . . . . . . . . . . . . . . . . . . . . . . . Robots Corrupted 21 | . . . . . . . 1 . . . 1 6 . 2 2 6 . . . . . . . . . 2 . . . . 1 Combat Hostiles 6 | . . . . . . . 1 . . . 1 . . . 2 . . . . . . . . . . 2 . . . . . Parts Fried 42 | . . . . . 1 . 2 . . . 2 9 1 5 . 20 . . . . . . . . . 1 . . . . 1 Impact Corruptions 34 | . . . . . . . 1 . . . . 10 . 4 4 14 . . . . . . . . . . . . . . 1 Robots Melted 46 | . 1 . . . . . . . . . . . . . . 4 . . . . 6 6 . 4 . 4 . 9 . . 12 Combat Hostiles 40 | . . . . . . . . . . . . . . . . 2 . . . . 6 5 . 3 . 4 . 9 . . 11 Parts Melted 228 | . 1 . . . . . . 2 . . 2 . 3 . . 8 7 . . . 32 37 9 21 . 30 4 26 . . 46 Heat Transferred 69205 | . 373 . . . 174 1036 111 927 37 958 333 37 2700 125 1600 2520 1739 . . . 9270 5674 1748 3578 . 7865 1774 11803 . . 14823 Parts Sabotaged . | . . . . . . . . . . . . . . . . . . . . . . . . . . . . . . . . Parts Stolen . | . . . . . . . . . . . . . . . . . . . . . . . . . . . . . . . . Parts Stripped . | . . . . . . . . . . . . . . . . . . . . . . . . . . . . . . . . Power Chain Reactions 4 | . 1 . . . 1 . . . . . . . . . . . . . . . . . . 1 . 1 . . . . . Alert | -11 -10 -10 -10 -9 -8 -8 -8 -8 -8 -8 -7 -7 -7 -6 -6 -5 -5 -5 -5 -5 -5 -4 -4 -4 -3 -3 -3 -3 -2 -2 -1 ------- Run | Yrd Mat Min Exi Min Mat Gar Mat Gar Mat Gar Fac Gar Fac Fac Gar Fac Ext Cet Arc Hub Gar Fac Upp Upp Res Gar Res Gar Res DSF Acc Maximum Alert Level 4 | . . . . . . 4 2 4 2 3 2 2 1 2 3 2 2 1 . . 3 2 . . . 2 1 3 2 1 3 Low Security (%) 39 | 100 100 100 . 100 100 18 . . . . 28 10 80 71 . . 75 41 100 100 13 69 . . 100 21 31 7 . . 58 Level 1 22 | . . . . . . 11 . 6 . 8 43 49 19 23 16 91 6 58 . . 21 11 . . . 64 68 33 52 100 5 Level 2 21 | . . . . . . 19 100 9 100 65 27 40 . 4 11 8 17 . . . 44 18 . . . 14 . 48 47 . 12 Level 3 13 | . . . . . . 37 . 56 . 26 . . . . 71 . . . . . 21 . . . . . . 10 . . 23 Level 4 2 | . . . . . . 13 . 27 . . . . . . . . . . . . . . . . . . . . . . . Level 5 . | . . . . . . . . . . . . . . . . . . . . . . . . . . . . . . . . High Security . | . . . . . . . . . . . . . . . . . . . . . . . . . . . . . . . . Max Security . | . . . . . . . . . . . . . . . . . . . . . . . . . . . . . . . . Peak Influence 1355 | 5 107 . . 113 117 1355 660 1233 600 902 473 622 326 408 807 428 459 258 185 109 923 585 . . . 465 279 805 452 252 1057 Initial 660 | . . . . . 27 58 660 352 600 366 473 49 326 95 280 392 114 240 55 32 46 473 . . . . 261 132 452 252 151 Average 360 | 3 27 . . 29 37 643 584 936 579 615 300 361 152 106 666 339 123 206 134 53 507 191 . . . 314 220 442 393 252 319 Influence Increases 14015 | 5 367 . . 113 229 1367 276 1121 54 696 236 603 555 667 597 311 1020 149 148 185 946 432 247 204 . 613 265 733 4 . 1872 Destroy 0b10 Robot/C 7555 | . 200 . . 60 140 480 150 600 45 285 120 315 315 390 345 150 495 75 60 60 630 240 195 180 . 285 135 525 . . 1080 Destroy 0b10 Robot/NC 432 | 5 35 . . 5 10 5 12 . . . 16 28 64 32 . 40 48 4 4 4 . 28 4 4 . . . . . . 84 Destroy Leader 1142 | . 40 . . 10 60 20 48 24 8 40 52 24 102 100 16 26 62 8 . 26 40 64 24 8 . 24 40 48 . . 228 Allied During Kill 785 | . . . . 11 12 7 . 102 1 27 28 . . . . . 332 54 64 77 31 12 . . . . 24 3 . . . Successful Hack 186 | . 12 . . . 3 12 . 17 . 6 4 11 4 4 . 3 25 6 . . 12 18 . . . 11 34 . 4 . . Disable Machine 315 | . . . . . . 15 36 . . . 12 . 12 60 . 24 24 . 12 . 12 . . . . 12 12 24 . . 60 Anti-Garrison Action 1922 | . . . . . . 600 . 227 . 265 . 151 . . 188 . . . . . 189 . . . . 189 . 113 . . . Destroy Structure 976 | . 5 . . 27 4 69 6 67 . 37 4 62 22 45 48 32 22 2 8 18 20 46 . . . 44 8 8 . . 372 Partial Spotted 51 | . . . . . . 15 . 12 . . . . 12 . . . . . . . . 12 . . . . . . . . . Lose Combat Pursuer 651 | . 75 . . . . 144 24 72 . 36 . 12 24 36 . 36 12 . . . 12 12 24 12 . 48 12 12 . . 48 Influence Decreases 12963 | 5 367 . . 40 212 102 1089 430 723 358 1067 52 982 462 250 825 824 439 194 211 111 1302 279 204 . 148 554 104 473 84 1072 Entered New Map 4818 | . . . . . 46 32 695 190 633 198 429 22 296 100 120 355 119 189 84 61 21 429 13 . . . 204 44 353 84 101 Time Decay 5524 | 5 337 . . 40 121 . 374 . 70 . 368 . 676 352 . 410 475 160 110 30 . 498 246 174 . . 310 . 120 . 648 Lost Part 1067 | . 30 . . . . 30 20 60 . 50 10 30 . 10 130 60 46 10 . . 50 70 20 30 . 68 . 20 . . 323 Lost Ally 1129 | . . . . . 45 40 . 180 20 110 110 . 10 . . . 184 80 . 120 40 30 . . . 80 40 40 . . . Purge Threat 425 | . . . . . . . . . . . 150 . . . . . . . . . . 275 . . . . . . . . . Squads Dispatched 77 | . 1 . . . 2 . . . 1 . 6 . 11 15 . 3 3 1 . 3 . 10 . 1 . . 4 . . . 16 Investigation 10 | . . . . . . . . . . . . . . 5 . . 1 1 . 1 . 1 . . . . . . . . 1 Extermination 27 | . . . . . . . . . . . 2 . 7 4 . 1 . . . . . 3 . . . . 2 . . . 8 Reinforcement 26 | . 1 . . . 1 . . . . . 2 . 4 5 . 2 2 . . 1 . 2 . . . . 2 . . . 4 Assault 4 | . . . . . . . . . . . . . . . . . . . . . . . . 1 . . . . . . 3 Garrison 10 | . . . . . 1 . . . 1 . 2 . . 1 . . . . . 1 . 4 . . . . . . . . . Intercept . | . . . . . . . . . . . . . . . . . . . . . . . . . . . . . . . . Searches Triggered . | . . . . . . . . . . . . . . . . . . . . . . . . . . . . . . . . Construction Impeded 6 | . . . . . . . . . . . . . . . . 2 1 . . 1 . 1 . . . . . . . . 1 Haulers Reinforced 4 | . . . . . . . . . . . 1 . 2 . . . . . . . . . . . . . . . . . 1 Active Scanning Responses . | . . . . . . . . . . . . . . . . . . . . . . . . . . . . . . . . Cargo Convoy Interrupts . | . . . . . . . . . . . . . . . . . . . . . . . . . . . . . . . . Alert ID Control Effect 1 | . . . . . . . . . . . . . . . . . . . . . . . . . . 1 . . . . . Stealth | -11 -10 -10 -10 -9 -8 -8 -8 -8 -8 -8 -7 -7 -7 -6 -6 -5 -5 -5 -5 -5 -5 -4 -4 -4 -3 -3 -3 -3 -2 -2 -1 --------- Run | Yrd Mat Min Exi Min Mat Gar Mat Gar Mat Gar Fac Gar Fac Fac Gar Fac Ext Cet Arc Hub Gar Fac Upp Upp Res Gar Res Gar Res DSF Acc Distress Signals 14 | . 1 . . . 1 2 . . . . . 1 . 1 . . 2 1 . 1 . 2 . . . . . . . . 2 Communications Jammed . | . . . . . . . . . . . . . . . . . . . . . . . . . . . . . . . . Distress Signals . | . . . . . . . . . . . . . . . . . . . . . . . . . . . . . . . . Times Spotted 678 | . 21 . . 3 9 31 20 45 6 27 9 21 31 35 77 17 34 5 4 7 38 31 15 15 . 29 10 35 . 1 102 Peak Tracking Total 12 | . 5 . . 3 3 4 3 5 2 6 4 4 3 4 12 5 6 5 2 5 9 4 5 5 . 7 4 6 . 1 7 Tactical Retreats 37 | . 2 . . . . 7 2 5 . 1 . 1 1 3 2 2 1 . . . 1 1 1 1 . 2 1 1 . . 2 Traps | -11 -10 -10 -10 -9 -8 -8 -8 -8 -8 -8 -7 -7 -7 -6 -6 -5 -5 -5 -5 -5 -5 -4 -4 -4 -3 -3 -3 -3 -2 -2 -1 ------- Run | Yrd Mat Min Exi Min Mat Gar Mat Gar Mat Gar Fac Gar Fac Fac Gar Fac Ext Cet Arc Hub Gar Fac Upp Upp Res Gar Res Gar Res DSF Acc Traps Triggered 26 | . . . . . . 8 3 1 . 1 . . 2 1 . 1 1 . . . 4 . . . . 2 . . . 1 1 Indirectly . | . . . . . . . . . . . . . . . . . . . . . . . . . . . . . . . . Trap Hack Attempts 17 | . . . . . . . . . . 17 . . . . . . . . . . . . . . . . . . . . . Triggered . | . . . . . . . . . . . . . . . . . . . . . . . . . . . . . . . . Disarmed 3 | . . . . . . . . . . 3 . . . . . . . . . . . . . . . . . . . . . Reprogrammed . | . . . . . . . . . . . . . . . . . . . . . . . . . . . . . . . . Reused . | . . . . . . . . . . . . . . . . . . . . . . . . . . . . . . . . Traps Extracted . | . . . . . . . . . . . . . . . . . . . . . . . . . . . . . . . . Installed . | . . . . . . . . . . . . . . . . . . . . . . . . . . . . . . . . Triggered . | . . . . . . . . . . . . . . . . . . . . . . . . . . . . . . . . Machines | -11 -10 -10 -10 -9 -8 -8 -8 -8 -8 -8 -7 -7 -7 -6 -6 -5 -5 -5 -5 -5 -5 -4 -4 -4 -3 -3 -3 -3 -2 -2 -1 ---------- Run | Yrd Mat Min Exi Min Mat Gar Mat Gar Mat Gar Fac Gar Fac Fac Gar Fac Ext Cet Arc Hub Gar Fac Upp Upp Res Gar Res Gar Res DSF Acc Machines Disabled 45 | . . . . . . 4 3 3 . 4 1 1 1 5 1 2 2 . 1 . 4 . . . . 4 1 3 . . 5 Max in Single Turn 1 | . . . . . . 1 1 1 . 1 . 1 1 1 1 1 1 . 1 . 1 . . . . 1 1 1 . . 1 Garrison Relay 17 | . . . . . . 3 . 3 . 4 . 1 . . 1 . . . . . 2 . . . . 2 . 1 . . . Machines Repaired . | . . . . . . . . . . . . . . . . . . . . . . . . . . . . . . . . Machines Dismantled . | . . . . . . . . . . . . . . . . . . . . . . . . . . . . . . . . Machines Sabotaged . | . . . . . . . . . . . . . . . . . . . . . . . . . . . . . . . . Overloaded Fab Kills . | . . . . . . . . . . . . . . . . . . . . . . . . . . . . . . . . Hacking | -11 -10 -10 -10 -9 -8 -8 -8 -8 -8 -8 -7 -7 -7 -6 -6 -5 -5 -5 -5 -5 -5 -4 -4 -4 -3 -3 -3 -3 -2 -2 -1 --------- Run | Yrd Mat Min Exi Min Mat Gar Mat Gar Mat Gar Fac Gar Fac Fac Gar Fac Ext Cet Arc Hub Gar Fac Upp Upp Res Gar Res Gar Res DSF Acc Machines Accessed 83 | . 6 . 3 1 2 3 1 3 1 3 3 3 3 7 . 4 12 1 1 1 3 6 1 . 1 2 6 1 1 . 4 Terminals 55 | . 6 . . . 1 3 . 3 . 3 1 3 2 2 . 2 11 1 . . 3 4 1 . . 2 3 1 1 . 2 Fabricators 5 | . . . . . . . . . . . . . . 3 . . . . . . . 1 . . . . . . . . 1 Repair Stations 3 | . . . . . . . . . . . . . . . . . . . . . . 1 . . . . 2 . . . . Recycling Units 4 | . . . . . . . . . . . . . . 1 . 1 1 . . . . . . . . . . . . . 1 Scanalyzers 3 | . . . . . . . . . . . 1 . 1 . . 1 . . . . . . . . . . . . . . . Garrison Access 8 | . . . . . 1 . 1 . 1 . 1 . . 1 . . . . . 1 . . . . 1 . 1 . . . . Total Hacks 194 | . 13 . 25 1 2 4 1 6 1 4 5 4 12 14 . 5 19 5 25 1 5 19 1 . 1 3 10 2 1 . 5 Successful 121 | . 7 . 25 1 1 1 1 2 1 1 5 2 7 5 . 3 11 1 25 1 3 8 1 . 1 1 6 . 1 . . Failed 72 | . 6 . . . 1 3 . 4 . 3 . 2 4 9 . 2 8 4 . . 2 11 . . . 2 4 2 . . 5 Catastrophic 22 | . 1 . . . 1 2 . . . 1 . 1 1 4 . 1 3 . . . 2 2 . . . . . . . . 3 Database Lockouts 1 | . . . . . . . . . . . . . 1 . . . . . . . . . . . . . . . . . . Manual 25 | . 10 . 1 . 1 . . . . . . . 1 4 . . . 1 . . . 3 . . . . 3 . . . 1 Terminals 97 | . 13 . . . 1 4 . 6 . 4 2 4 3 5 . 2 18 5 . . 5 10 1 . . 3 5 2 1 . 3 Fabricators 12 | . . . . . . . . . . . . . . 7 . . . . . . . 4 . . . . . . . . 1 Repair Stations 9 | . . . . . . . . . . . . . . . . . . . . . . 5 . . . . 4 . . . . Recycling Units 5 | . . . . . . . . . . . . . . 1 . 2 1 . . . . . . . . . . . . . 1 Scanalyzers 12 | . . . . . . . . . . . 2 . 9 . . 1 . . . . . . . . . . . . . . . Garrison Access 8 | . . . . . 1 . 1 . 1 . 1 . . 1 . . . . . 1 . . . . 1 . 1 . . . . Terminal Hacks 84 | . 2 . 25 1 . 1 . 2 . 1 2 2 . . . 1 11 1 25 . 3 3 1 . . 1 1 . 1 . . Record 52 | . . . 24 . . . . . . . . . . . . . 1 . 25 . . 1 1 . . . . . . . . Part Schematic 1 | . . . . . . . . . . . . . . . . . 1 . . . . . . . . . . . . . . Robot Analysis 1 | . 1 . . . . . . . . . . . . . . . . . . . . . . . . . . . . . . Open Door 13 | . . . . 1 . . . 1 . 1 . . . . . 1 7 1 . . 1 . . . . . . . . . . Open DSF 2 | . . . . . . . . . . . . . . . . . . . . . . . . . . . 1 . 1 . . Branch Access Points 1 | . . . . . . . . . . . . . . . . . . . . . . 1 . . . . . . . . . Emergency Access Points 4 | . . . . . . 1 . 1 . . . . . . . . . . . . 1 . . . . 1 . . . . . Locate Traps 3 | . 1 . . . . . . . . . 1 . . . . . 1 . . . . . . . . . . . . . . Hauler Manifests 1 | . . . . . . . . . . . 1 . . . . . . . . . . . . . . . . . . . . Zone Layout 2 | . . . . . . . . . . . . . . . . . 1 . . . . 1 . . . . . . . . . Garrison Registry 1 | . . . . . . . . . . . . 1 . . . . . . . . . . . . . . . . . . . Security Stations 2 | . . . . . . . . . . . . 1 . . . . . . . . 1 . . . . . . . . . . Proto ID Catalog 1 | . . . 1 . . . . . . . . . . . . . . . . . . . . . . . . . . . . Fabricator Hacks 4 | . . . . . . . . . . . . . . 3 . . . . . . . 1 . . . . . . . . . Load Schematic 3 | . . . . . . . . . . . . . . 2 . . . . . . . 1 . . . . . . . . . Build 1 | . . . . . . . . . . . . . . 1 . . . . . . . . . . . . . . . . . Repair Station Hacks 7 | . . . . . . . . . . . . . . . . . . . . . . 4 . . . . 3 . . . . Scan Component 4 | . . . . . . . . . . . . . . . . . . . . . . 2 . . . . 2 . . . . Repair 3 | . . . . . . . . . . . . . . . . . . . . . . 2 . . . . 1 . . . . Recycling Unit Hacks 2 | . . . . . . . . . . . . . . 1 . 1 . . . . . . . . . . . . . . . Retrieve Matter 2 | . . . . . . . . . . . . . . 1 . 1 . . . . . . . . . . . . . . . Scanalyzer 10 | . . . . . . . . . . . 2 . 7 . . 1 . . . . . . . . . . . . . . . Insert Component 3 | . . . . . . . . . . . . . 3 . . . . . . . . . . . . . . . . . . Analyze 3 | . . . . . . . . . . . . . 3 . . . . . . . . . . . . . . . . . . Retrieve Study 4 | . . . . . . . . . . . 2 . 1 . . 1 . . . . . . . . . . . . . . . Garrison Access Hacks 8 | . . . . . 1 . 1 . 1 . 1 . . 1 . . . . . 1 . . . . 1 . 1 . . . . Unlock Access 8 | . . . . . 1 . 1 . 1 . 1 . . 1 . . . . . 1 . . . . 1 . 1 . . . . Unauthorized Hacks 6 | . 5 . . . . . . . . . . . . . . . . . . . . . . . . . 1 . . . . Terminals 6 | . 5 . . . . . . . . . . . . . . . . . . . . . . . . . 1 . . . . Assimilate 1 | . . . . . . . . . . . . . . . . . . . . . . . . . . . 1 . . . . Skim 5 | . 5 . . . . . . . . . . . . . . . . . . . . . . . . . . . . . . Fabricators . | . . . . . . . . . . . . . . . . . . . . . . . . . . . . . . . . Repair Stations . | . . . . . . . . . . . . . . . . . . . . . . . . . . . . . . . . Recycling Units . | . . . . . . . . . . . . . . . . . . . . . . . . . . . . . . . . Scanalyzers . | . . . . . . . . . . . . . . . . . . . . . . . . . . . . . . . . Garrison Access . | . . . . . . . . . . . . . . . . . . . . . . . . . . . . . . . . Data Cores Recovered 1 | . . . . . . . 1 . . . . . . . . . . . . . . . . . . . . . . . . Used . | . . . . . . . . . . . . . . . . . . . . . . . . . . . . . . . . Hacking Detections 58 | . 6 . . . 1 3 . 3 . 2 2 2 2 5 . 3 7 1 . . 3 6 . . 1 1 5 1 . . 4 Full Trace Events 14 | . . . . . . . . 1 . 1 . 1 . 5 . . 1 1 . . 1 1 . . . 1 . . . . 1 Feedback Events 3 | . . . . . . . . . . . . . . 2 . . . . . . . . . . . 1 . . . . . Corruption 3 | . . . . . . . . . . . . . . 2 . . . . . . . . . . . 1 . . . . . Feedback Blocked . | . . . . . . . . . . . . . . . . . . . . . . . . . . . . . . . . Robot Schematics Acquired . | . . . . . . . . . . . . . . . . . . . . . . . . . . . . . . . . Robots Built . | . . . . . . . . . . . . . . . . . . . . . . . . . . . . . . . . Authchips . | . . . . . . . . . . . . . . . . . . . . . . . . . . . . . . . . Time . | . . . . . . . . . . . . . . . . . . . . . . . . . . . . . . . . Total Robot Build Rating . | . . . . . . . . . . . . . . . . . . . . . . . . . . . . . . . . Part Schematics Acquired 4 | . . . . . . . . . . . . . 3 . . . 1 . . . . . . . . . . . . . . Parts Built 1 | . . . . . . . . . . . . . . 1 . . . . . . . . . . . . . . . . . Authchips . | . . . . . . . . . . . . . . . . . . . . . . . . . . . . . . . . Time 117 | . . . . . . . . . . . . . . 117 . . . . . . . . . . . . . . . . . Total Part Build Rating 7 | . . . . . . . . . . . . . . 7 . . . . . . . . . . . . . . . . . Part Studies Acquired 3 | . . . . . . . . . . . 2 . . . . 1 . . . . . . . . . . . . . . . Parts Repaired 3 | . . . . . . . . . . . . . . . . . . . . . . 2 . . . . 1 . . . . Time 150 | . . . . . . . . . . . . . . . . . . . . . . 106 . . . . 44 . . . . Parts Recycled . | . . . . . . . . . . . . . . . . . . . . . . . . . . . . . . . . Recycled Matter . | . . . . . . . . . . . . . . . . . . . . . . . . . . . . . . . . Retrieved Matter . | . . . . . . . . . . . . . . . . . . . . . . . . . . . . . . . . Retrieved Components . | . . . . . . . . . . . . . . . . . . . . . . . . . . . . . . . . Parts Scanalyzed 3 | . . . . . . . . . . . . . 3 . . . . . . . . . . . . . . . . . . Part Schematics Acquired 3 | . . . . . . . . . . . . . 3 . . . . . . . . . . . . . . . . . . Parts Damaged 1 | . . . . . . . . . . . . . 1 . . . . . . . . . . . . . . . . . . Bothacking | -11 -10 -10 -10 -9 -8 -8 -8 -8 -8 -8 -7 -7 -7 -6 -6 -5 -5 -5 -5 -5 -5 -4 -4 -4 -3 -3 -3 -3 -2 -2 -1 ------------ Run | Yrd Mat Min Exi Min Mat Gar Mat Gar Mat Gar Fac Gar Fac Fac Gar Fac Ext Cet Arc Hub Gar Fac Upp Upp Res Gar Res Gar Res DSF Acc Used RIF Installer 10 | . . . . . . 2 . 1 . 2 . 1 . . 1 . . . . . 1 . . . . 2 . . . . . Coupler Efficiency 3 | . . . . . . . . 1 . 1 . . . . . . . . . . . . . . . 1 . . . . . Hotswap 1 | . . . . . . . . . . 1 . . . . . . . . . . . . . . . . . . . . . Threat Obfuscator 1 | . . . . . . 1 . . . . . . . . . . . . . . . . . . . . . . . . . Watcher Feeds 1 | . . . . . . . . . . . . . . . . . . . . . 1 . . . . . . . . . . Patrol Navigation 1 | . . . . . . . . . . . . . . . . . . . . . . . . . . 1 . . . . . Alert ID Control 1 | . . . . . . . . . . . . . . . 1 . . . . . . . . . . . . . . . . Structural Interface 1 | . . . . . . . . . . . . 1 . . . . . . . . . . . . . . . . . . . Robots Hacked 43 | . . . 4 . . 4 . 5 2 12 5 . . . . . . . . . . 1 . . . 8 1 1 . . . Non-combat 8 | . . . 3 . . . . . . . 3 . . . . . . . . . . 1 . . . . 1 . . . . Combat 35 | . . . 1 . . 4 . 5 2 12 2 . . . . . . . . . . . . . . 8 . 1 . . . Robot Hacks Applied 47 | . . . 4 . . 4 . 5 2 12 7 . . . . . . . . . . 3 . . . 8 1 1 . . . parse_system 4 | . . . 4 . . . . . . . . . . . . . . . . . . . . . . . . . . . . drop_inventory 1 | . . . . . . . . . . . 1 . . . . . . . . . . . . . . . . . . . . purge_threat 3 | . . . . . . . . . . . 1 . . . . . . . . . . 2 . . . . . . . . . locate_traps 1 | . . . . . . . . . . . 1 . . . . . . . . . . . . . . . . . . . . amplify_resonance 1 | . . . . . . . . . . . . . . . . . . . . . . . . . . 1 . . . . . reboot_system 4 | . . . . . . 1 . 1 . 2 . . . . . . . . . . . . . . . . . . . . . overwrite_iff 4 | . . . . . . 1 . . . . . . . . . . . . . . . . . . . 3 . . . . . streamctrl_high 1 | . . . . . . . . . 1 . . . . . . . . . . . . . . . . . . . . . . formatsys_low 4 | . . . . . . . . . . . 2 . . . . . . . . . . 1 . . . . 1 . . . . formatsys_high 24 | . . . . . . 2 . 4 1 10 2 . . . . . . . . . . . . . . 4 . 1 . . . Relay Couplers Released 69 | . . . . . . 12 . 12 . 18 . 3 . . 5 . . . . . 7 . . . . 8 . 4 . . . Machine Destruction 69 | . . . . . . 12 . 12 . 18 . 3 . . 5 . . . . . 7 . . . . 8 . 4 . . . Attached 21 | . . . . . . 2 . 4 2 6 1 2 . . . . . . . . . 1 . . . 2 . 1 . . . Fabnet Peak Effective % . | . . . . . . . . . . . . . . . . . . . . . . . . . . . . . . . . Robots Rewired 18 | . . . . . . . . 3 . . . . . . . . 13 . . . 2 . . . . . . . . . . Allies Hacked 5 | . . . . . . . . 4 . . 1 . . . . . . . . . . . . . . . . . . . . Hacks Repelled . | . . . . . . . . . . . . . . . . . . . . . . . . . . . . . . . . Allies | -11 -10 -10 -10 -9 -8 -8 -8 -8 -8 -8 -7 -7 -7 -6 -6 -5 -5 -5 -5 -5 -5 -4 -4 -4 -3 -3 -3 -3 -2 -2 -1 -------- Run | Yrd Mat Min Exi Min Mat Gar Mat Gar Mat Gar Fac Gar Fac Fac Gar Fac Ext Cet Arc Hub Gar Fac Upp Upp Res Gar Res Gar Res DSF Acc Total Allies 74 | . . 3 . . . 3 . 9 2 11 4 . . . . . 23 5 . . 4 1 . . . 7 1 1 . . . Largest Group 12 | . . 3 3 3 3 3 . 5 2 5 6 1 1 . . . 12 10 10 9 4 2 . . . 3 3 2 . . . Highest-Rated Group 720 | . . 40 40 40 40 45 . 102 30 98 124 26 26 . . . 433 720 720 554 380 186 . . . 141 141 100 . . . Highest-Rated Ally 159 | . . 16 16 16 16 15 . 25 15 39 39 26 26 . . . 159 159 159 96 148 148 . . . 47 47 64 . . . Total Orders 35 | . . . . . . . 4 . . 9 13 2 . . . . . . . . . . . . . . 2 5 . . . STAY 15 | . . . . . . . . . . 4 7 1 . . . . . . . . . . . . . . . 3 . . . FOLLOW 8 | . . . . . . . . . . 2 4 1 . . . . . . . . . . . . . . 1 . . . . AID 5 | . . . . . . . . . . . 2 . . . . . . . . . . . . . . . 1 2 . . . EXPLORE 4 | . . . . . . . 2 . . 2 . . . . . . . . . . . . . . . . . . . . . RETURN 3 | . . . . . . . 2 . . 1 . . . . . . . . . . . . . . . . . . . . . Ally Attacks 480 | . . . . . 14 15 . 75 2 63 49 . . . . . 115 29 13 32 26 18 . . . 7 18 4 . . . Total Damage 11643 | . . . . . 142 368 . 2112 41 829 991 . . . . . 2544 907 556 1306 763 368 . . . 119 494 103 . . . Kills 90 | . . . . . 2 2 . 20 . 8 10 . . . . . 27 4 3 5 4 1 . . . 1 3 . . . . Allies Corrupted 3 | . . . . . . . . 1 . . . . . . . . . . . . . . . . . 2 . . . . . Allies Melted 2 | . . . . . . . . . . . 1 . . . . . . . . . 1 . . . . . . . . . . Intel | -11 -10 -10 -10 -9 -8 -8 -8 -8 -8 -8 -7 -7 -7 -6 -6 -5 -5 -5 -5 -5 -5 -4 -4 -4 -3 -3 -3 -3 -2 -2 -1 ------- Run | Yrd Mat Min Exi Min Mat Gar Mat Gar Mat Gar Fac Gar Fac Fac Gar Fac Ext Cet Arc Hub Gar Fac Upp Upp Res Gar Res Gar Res DSF Acc Active Infowar (turns) 7277 | 5 1097 294 553 194 34 2420 859 1481 . . 173 . . . . . . . . . . . . . . . . . . . 167 Structural 4961 | . . . . . 34 2420 859 1481 . . . . . . . . . . . . . . . . . . . . . . 167 Seismic 2143 | 5 1097 294 553 194 . . . . . . . . . . . . . . . . . . . . . . . . . . . Machine Analysis 173 | . . . . . . . . . . . 173 . . . . . . . . . . . . . . . . . . . . Robot Analysis Total 1 | . 1 . . . . . . . . . . . . . . . . . . . . . . . . . . . . . . Derelict Logs Recovered 4 | . . 1 . 1 . . . . . . . . . . . . . . . . . . . 2 . . . . . . . Drone Launches 4 | . . . . . . . 2 . . 2 . . . . . . . . . . . . . . . . . . . . . Drone Recoveries 3 | . . . . . . . 2 . . 1 . . . . . . . . . . . . . . . . . . . . . Exploration | -11 -10 -10 -10 -9 -8 -8 -8 -8 -8 -8 -7 -7 -7 -6 -6 -5 -5 -5 -5 -5 -5 -4 -4 -4 -3 -3 -3 -3 -2 -2 -1 ------------- Run | Yrd Mat Min Exi Min Mat Gar Mat Gar Mat Gar Fac Gar Fac Fac Gar Fac Ext Cet Arc Hub Gar Fac Upp Upp Res Gar Res Gar Res DSF Acc Turns Passed 30593 | 22 1097 294 553 295 326 2420 867 1662 157 1507 852 1455 2651 1771 824 995 1803 326 224 71 1429 1323 635 422 54 1405 689 1286 251 86 2841 Spaces Moved 16030 | 11 620 182 338 170 142 1124 322 837 80 735 422 671 1386 825 321 1224 1104 209 139 32 873 768 472 262 44 651 280 471 141 53 1121 Core 333 | . . . . . . . . . . . . . . . 62 271 . . . . . . . . . . . . . . . Treads 10452 | . 319 182 338 170 142 1124 322 837 80 735 422 671 1386 825 259 . 15 . . . . . . . . 559 280 471 141 53 1121 Legs 4004 | 11 301 . . . . . . . . . . . . . . . 801 209 139 32 873 768 472 262 44 92 . . . . . Wheels . | . . . . . . . . . . . . . . . . . . . . . . . . . . . . . . . . Hover 1241 | . . . . . . . . . . . . . . . . 953 288 . . . . . . . . . . . . . . Flight . | . . . . . . . . . . . . . . . . . . . . . . . . . . . . . . . . Fastest Speed 50 | 120 120 160 160 160 160 160 160 160 160 160 160 160 160 160 50 50 58 120 120 120 120 120 120 120 120 120 155 155 155 155 145 Average Speed 142 | 120 140 160 160 160 167 175 204 168 160 160 160 160 160 160 139 58 106 120 120 120 120 120 120 120 120 150 155 155 155 155 157 Slowest Speed 260 | 120 160 160 160 160 240 240 245 245 160 160 160 160 160 160 160 102 260 120 120 120 190 120 120 120 120 250 155 155 155 155 250 Overloaded Moves . | . . . . . . . . . . . . . . . . . . . . . . . . . . . . . . . . Propulsion Burnouts . | . . . . . . . . . . . . . . . . . . . . . . . . . . . . . . . . Robots Hopped . | . . . . . . . . . . . . . . . . . . . . . . . . . . . . . . . . Potential Cave-ins 2 | . . . . . . . . . . . . . . . . . . . . . . . . . . . . . . . 2 Cave-ins Triggered . | . . . . . . . . . . . . . . . . . . . . . . . . . . . . . . . . Exploration Rate (%) 43 | 2 93 36 66 48 15 77 33 80 8 65 8 63 33 22 42 11 96 60 83 6 78 25 69 26 2 61 12 37 6 92 38 Regions Visited 31 Branch Regions 9 Pre-discovered Areas 2 | . . . 1 . . . . . . . . . . . . . . . . . . . . 1 . . . . . . . Known Exits Taken 11 | . . . 1 . 1 . 1 . 1 . 1 . . 1 . . . . . 1 . 1 . . 1 . 1 . 1 . . Unknown Exits Taken 11 | 1 1 1 . 1 . . . . . . . . 1 . . 1 1 1 1 . . . 1 1 . . . . . . . Scrap Searched 3 | . . . . . . . . . . . . . . . . . . . . . . . 1 2 . . . . . . . Spaces Dug 34 | . . . . . . . 1 . . . 2 . 3 2 . 11 . . . . . 4 . . . . . . . . 11 Terrain Destroyed 541 | . 4 . . 37 3 35 3 68 . 22 2 49 20 44 33 11 7 1 3 2 7 18 7 16 . 9 1 . . . 139 Melee 11 | . . . . . . . 1 . . . 2 . 3 2 . 3 . . . . . . . . . . . . . . . Projectile 138 | . . . . . . . 2 1 . 3 . 1 . 2 7 8 6 1 3 2 5 16 7 5 . . 1 . . . 68 AOE 387 | . 4 . . 37 3 35 . 67 . 19 . 48 17 40 25 . . . . . . 2 . 11 . 9 . . . . 70 Terrain Rammed . | . . . . . . . . . . . . . . . . . . . . . . . . . . . . . . . . Walls Destroyed . | . . . . . . . . . . . . . . . . . . . . . . . . . . . . . . . . Machines Disabled . | . . . . . . . . . . . . . . . . . . . . . . . . . . . . . . . . Actions | -11 -10 -10 -10 -9 -8 -8 -8 -8 -8 -8 -7 -7 -7 -6 -6 -5 -5 -5 -5 -5 -5 -4 -4 -4 -3 -3 -3 -3 -2 -2 -1 --------- Run | Yrd Mat Min Exi Min Mat Gar Mat Gar Mat Gar Fac Gar Fac Fac Gar Fac Ext Cet Arc Hub Gar Fac Upp Upp Res Gar Res Gar Res DSF Acc Total 21412 | 15 747 185 350 189 198 1398 454 976 100 981 566 940 1675 1141 550 1432 1615 265 185 46 1116 1064 512 316 45 980 501 859 173 57 1781 Wait 2612 | . 39 3 . 9 9 99 29 7 4 83 87 141 163 207 99 106 235 30 40 6 54 198 . 4 . 187 189 272 30 1 281 Move 16005 | 10 619 181 337 169 142 1123 322 836 80 734 422 669 1385 825 320 1223 1103 208 138 32 872 767 471 261 44 650 280 470 140 52 1120 Hop . | . . . . . . . . . . . . . . . . . . . . . . . . . . . . . . . . Pick Up 249 | 1 17 1 2 . 8 15 9 8 2 13 5 6 6 4 5 11 12 6 2 . 16 7 4 6 1 17 1 7 . 1 56 Fast Attach 176 | . 1 . . 2 4 7 9 9 . 8 1 9 11 3 3 12 34 . . . 19 5 1 1 . 12 5 5 2 1 12 Attach 204 | 1 5 . 3 . 5 1 10 5 1 13 3 6 . 4 9 12 6 5 . . 13 9 10 10 . 13 . 7 . 1 52 Detach 103 | . . . 2 1 1 2 6 2 1 10 1 6 1 1 7 9 2 4 . . 10 5 7 3 . 6 1 5 1 . 9 Swap 247 | 1 7 . . 2 12 20 12 24 4 20 20 15 11 17 12 . 12 1 . . 11 4 . . . 8 3 6 . . 25 Drop 262 | . 8 . 2 2 4 20 19 12 1 10 3 19 16 4 4 7 30 1 . . 31 5 1 3 . 24 6 7 . 1 22 Fire 1224 | 2 49 . . 3 12 81 35 53 3 40 18 47 78 66 79 30 61 8 4 8 80 61 17 28 . 63 16 80 . . 202 Melee 153 | . . . 4 . . 16 1 15 3 30 6 21 3 10 9 22 10 2 1 . . . . . . . . . . . . Ram . | . . . . . . . . . . . . . . . . . . . . . . . . . . . . . . . . Kick 3 | . . . . . . . . . . . . . . . . . 1 . . . . 2 . . . . . . . . . Crush 12 | . 2 . . 1 1 . 2 . 1 . . . 1 . 2 . . . . . . . . . . . . . . . 2 Escape Stasis 23 | . . . . . . 13 . . . . . . . . . . . . . . 10 . . . . . . . . . . Rewire 122 | . . . . . . 1 . 5 . 3 . 1 . . 1 . 109 . . . . 1 1 . . . . . . . . Trap 17 | . . . . . . . . . . 17 . . . . . . . . . . . . . . . . . . . . . Miscellaneous . | . . . . . . . . . . . . . . . . . . . . . . . . . . . . . . . . Route ------- -11/Scrapyard -10/Materials (discovered 5 exits: [*Mat x3] / [*Min] / [*Sub]) -10/Mines (discovered 2 exits: [*Mat] / *Exi) -10/Exiles (discovered 2 exits: *Min x2) -9/Mines -8/Materials (discovered 2 exits: *Sto / Gar) -8/Garrison (discovered 3 exits: *Mat x3) -8/Materials (discovered 3 exits: Sto x2 / Gar) -8/Garrison (discovered 4 exits: *Fac x3 / *Mat) -8/Materials -8/Garrison (discovered 3 exits: *Fac x3) -7/Factory -7/Garrison (discovered 3 exits: *Fac x3) -7/Factory -6/Factory (discovered 2 exits: [*Low] / Gar) -6/Garrison -5/Factory -5/Extension (discovered 2 exits: *Fac / *Cet) -5/Cetus -5/Archives (discovered 3 exits: *Fac / *Hub x2) -5/Hub_04(d) -5/Garrison (discovered 3 exits: *Fac x3) -4/Factory (discovered 2 exits: *Upp x2) -4/Upper Caves -4/Upper Caves -3/Research -3/Garrison -3/Research -3/Garrison -2/Research -2/DSF -1/Access To Epsilon Eridani History --------- Turn | Location | Event 9 | -11/Scrapyard | Discovered new exit (range 3) 23 | -11/Scrapyard | Entered Materials 318 | -10/Materials | Build established: Mutant 406 | -10/Materials | Discovered new exit (range 3) 642 | -10/Materials | Discovered new exit (range 4) 680 | -10/Materials | Discovered new exit (range 10) 681 | -10/Materials | Core integrity fell below 50% 716 | -10/Materials | Lost 3 parts (1p2w) 813 | -10/Materials | Discovered new exit (range 12) 872 | -10/Materials | Discovered new exit (range 16) 1018 | -10/Materials | Learned location of 1 exit from Recycling 1081 | -10/Materials | Learned location of 1 exit from Recycling 1093 | -10/Materials | Learned location of 1 exit from Storage 1120 | -10/Materials | Entered Mines 1127 | -10/Mines | Received a Rocket Launcher from a helpful Derelict 1206 | -10/Mines | Learned Materials stockpile data 1209 | -10/Mines | Discovered new exit (range 7) 1365 | -10/Mines | Assisted by bots powering up and referring to "LRC-V3" 1403 | -10/Mines | Deemed a non-threat by the Exiles lab entrance 1403 | -10/Mines | Discovered new exit (range 5) 1414 | -10/Mines | Entered Exiles 1414 | -10/Exiles | Accompanied by 3 allies 1415 | -10/Exiles | Identified exit to Mines 1462 | -10/Exiles | Met 8R-AWN 1485 | -10/Exiles | Met EX-HEX 1583 | -10/Exiles | Met EX-DEC 1627 | -10/Exiles | Learned location of Zion (-6) 1656 | -10/Exiles | Met EX-BIN 1685 | -10/Exiles | Aligned with FarCom system 1686 | -10/Exiles | Given EX-Vault access code 1747 | -10/Exiles | Opened EX-Vault 1780 | -10/Exiles | Found Firepult 1815 | -10/Exiles | Warned to stay clear of 0b10 Research branches 1967 | -10/Exiles | Left Exiles lab with Firepult 1967 | -10/Exiles | Entered Mines 1967 | -9/Mines | Accompanied by 3 allies 1981 | -9/Mines | Found the Drone Emporium 1989 | -9/Mines | Found Prototype Device 1989 | -9/Mines | Identified Sensor Drone Bay 2234 | -9/Mines | Discovered new exit (range 12) 2262 | -9/Mines | Entered Materials 2262 | -8/Materials | Accompanied by 3 allies 2262 | -8/Materials | Evolved 4 slots: Propulsion x1, Utility x2, Weapon x1 2263 | -8/Materials | Identified exit to Storage 2474 | -8/Materials | Garrison activated, responded to threat 2588 | -8/Materials | Identified exit to Garrison 2588 | -8/Materials | Entered Garrison 2669 | -8/Garrison | Triggered checkpoint 2799 | -8/Garrison | Garrison Relay disabled 2807 | -8/Garrison | Build established: Scavenger-Skirmisher 2972 | -8/Garrison | Triggered checkpoint 3030 | -8/Garrison | Triggered checkpoint 3095 | -8/Garrison | Discovered new exit (range 10) 3147 | -8/Garrison | Garrison Relay disabled 3176 | -8/Garrison | Triggered checkpoint 3751 | -8/Garrison | Discovered new exit (range 14) 3895 | -8/Garrison | Triggered checkpoint 3997 | -8/Garrison | Installed Relay Interface Framework 4233 | -8/Garrison | Garrison Relay disabled 4383 | -8/Garrison | Triggered checkpoint 4510 | -8/Garrison | Build established: Scavenger-Mutant 4539 | -8/Garrison | Discovered new exit (range 12) 4582 | -8/Garrison | Triggered checkpoint 4663 | -8/Garrison | Lost 3 allies 4771 | -8/Garrison | Expanded RIF knowledge: Threat Obfuscation 4903 | -8/Garrison | Build established: Scavenger-Skirmisher 5008 | -8/Garrison | Entered Materials 5875 | -8/Materials | Identified exit to Garrison 5875 | -8/Materials | Entered Garrison 5897 | -8/Garrison | Expanded RIF knowledge: Coupler Efficiency 5980 | -8/Garrison | Rescued a captive Derelict 5987 | -8/Garrison | Rescued a captive Derelict 6062 | -8/Garrison | Core integrity fell below 50% 6101 | -8/Garrison | Triggered checkpoint 6105 | -8/Garrison | Triggered checkpoint 6123 | -8/Garrison | Triggered checkpoint 6356 | -8/Garrison | Discovered new exit (range 14) 6459 | -8/Garrison | Triggered checkpoint 6489 | -8/Garrison | Triggered checkpoint 6532 | -8/Garrison | Garrison Relay disabled 6629 | -8/Garrison | Triggered checkpoint 6697 | -8/Garrison | Discovered new exit (range 10) 6825 | -8/Garrison | Triggered checkpoint 6871 | -8/Garrison | Discovered new exit (range 5) 7077 | -8/Garrison | Triggered checkpoint 7107 | -8/Garrison | Garrison Relay disabled 7154 | -8/Garrison | Discovered new exit (range 14) 7369 | -8/Garrison | Lost 3 parts (2n1u) 7375 | -8/Garrison | Lost 5 allies 7438 | -8/Garrison | Garrison Relay disabled 7537 | -8/Garrison | Entered Materials 7619 | -8/Materials | Garrison activated, responded to threat 7679 | -8/Materials | Core integrity fell below 20% 7694 | -8/Materials | Identified exit to Garrison 7694 | -8/Materials | Entered Garrison 7794 | -8/Garrison | Triggered checkpoint 7821 | -8/Garrison | Garrison Relay disabled 7928 | -8/Garrison | Triggered checkpoint 8050 | -8/Garrison | Triggered checkpoint 8152 | -8/Garrison | Lost 3 allies 8308 | -8/Garrison | Discovered new exit (range 8) 8372 | -8/Garrison | Triggered checkpoint 8421 | -8/Garrison | Garrison Relay disabled 8484 | -8/Garrison | Triggered checkpoint 8506 | -8/Garrison | Triggered checkpoint 8559 | -8/Garrison | Discovered new exit (range 12) 8614 | -8/Garrison | Triggered checkpoint 8728 | -8/Garrison | Rescued a captive Derelict 8783 | -8/Garrison | Garrison Relay disabled 8831 | -8/Garrison | Expanded RIF knowledge: Coupler Efficiency 8973 | -8/Garrison | Discovered new exit (range 12) 9018 | -8/Garrison | Triggered checkpoint 9034 | -8/Garrison | Garrison Relay disabled 9082 | -8/Garrison | Expanded RIF knowledge: Hotswap 9201 | -8/Garrison | Entered Factory 9201 | -7/Factory | Accompanied by 5 allies 9201 | -7/Factory | Evolved 2 slots: Propulsion x1, Utility x1 9878 | -7/Factory | Garrison activated, responded to threat 9908 | -7/Factory | Lost 5 allies 10053 | -7/Factory | Identified exit to Garrison 10053 | -7/Factory | Entered Garrison 10053 | -7/Garrison | Accompanied by 1 ally 10081 | -7/Garrison | Learned Factory security intel 10147 | -7/Garrison | Triggered checkpoint 10291 | -7/Garrison | System corruption reached 10% 10471 | -7/Garrison | Triggered checkpoint 10650 | -7/Garrison | Build established: Scavenger-Tank 10692 | -7/Garrison | Discovered new exit (range 12) 10701 | -7/Garrison | Discovered new exit (range 84) 10701 | -7/Garrison | Discovered new exit (range 58) 10701 | -7/Garrison | Discovered new exit (range 13) 10789 | -7/Garrison | Triggered checkpoint 10833 | -7/Garrison | Triggered checkpoint 10845 | -7/Garrison | Expanded RIF knowledge: Structural Interface 11117 | -7/Garrison | Triggered checkpoint 11431 | -7/Garrison | Garrison Relay disabled 11445 | -7/Garrison | Triggered checkpoint 11504 | -7/Garrison | System corruption reached 30% 11508 | -7/Garrison | Entered Factory 11508 | -7/Factory | Accompanied by 1 ally 11794 | -7/Factory | Central database locked down 12220 | -7/Factory | Found Powered Armor 13032 | -7/Factory | Discovered new exit (range 9) 14159 | -7/Factory | Entered another Factory area 14159 | -6/Factory | Evolved 2 slots: Utility x1, Weapon x1 14635 | -6/Factory | Discovered new exit (range 3) 15425 | -6/Factory | Fabricated Imp. Heavy Treads (x1) 15716 | -6/Factory | Build established: Tank 15725 | -6/Factory | Garrison activated, responded to threat 15930 | -6/Factory | Identified exit to Garrison 15930 | -6/Factory | Entered Garrison 16004 | -6/Garrison | Triggered checkpoint 16029 | -6/Garrison | Garrison Relay disabled 16040 | -6/Garrison | Assembled breached garrison interior 16207 | -6/Garrison | Destroyed 20 combat bots 16237 | -6/Garrison | Expanded RIF knowledge: Alert ID Control 16311 | -6/Garrison | Discovered new exit (range 5) 16424 | -6/Garrison | Destroyed 8 combat bots 16538 | -6/Garrison | Lost 3 parts (1u2w) 16648 | -6/Garrison | Destroyed 33 combat bots 16697 | -6/Garrison | System corruption reached 10% 16750 | -6/Garrison | Lost 8 parts (1p1n3u3w) 16754 | -6/Garrison | Entered Factory 16754 | -5/Factory | Evolved 2 slots: Power x1, Utility x1 16993 | -5/Factory | Build established: Mutant 17747 | -5/Factory | Discovered new exit (range 6) 17749 | -5/Factory | Entered Extension 17775 | -5/Extension | Lost 5 parts (1p1n1u2w) 17822 | -5/Extension | Rescued a captive Derelict 17843 | -5/Extension | Rescued a captive Derelict 17844 | -5/Extension | Rescued a captive Derelict 18117 | -5/Extension | Rescued a captive Derelict 18117 | -5/Extension | Rescued a captive Derelict 18350 | -5/Extension | Lost 4 allies 18588 | -5/Extension | Build established: Scavenger-Skirmisher 18629 | -5/Extension | Spotted B-75 Beast 18657 | -5/Extension | Destroyed B-75 Beast 18670 | -5/Extension | Spotted B-75 Beast 18702 | -5/Extension | Allies destroyed B-75 Beast 18724 | -5/Extension | Lost 5 parts (1p2n1u1w) 18867 | -5/Extension | System corruption reached 10% 19046 | -5/Extension | Rescued A7 19153 | -5/Extension | Rescued a captive Derelict 19204 | -5/Extension | Rescued a captive Derelict 19271 | -5/Extension | Rescued a captive Derelict 19272 | -5/Extension | Rescued a captive Derelict 19346 | -5/Extension | Discovered new exit (range 10) 19348 | -5/Extension | Discovered new exit (range 6) 19460 | -5/Extension | Build established: Scavenger-Tank 19552 | -5/Extension | Entered Cetus 19552 | -5/Cetus | Accompanied by 9 allies (A7) 19557 | -5/Cetus | Acquired a Cetus Manufacturing Module code from A7 19568 | -5/Cetus | Spotted Cetus Guard 19568 | -5/Cetus | Spotted Cetus Guard 19573 | -5/Cetus | Spotted Cetus Guard 19573 | -5/Cetus | Spotted Cetus Guard 19591 | -5/Cetus | Allies destroyed Cetus Guard 19592 | -5/Cetus | Allies destroyed Cetus Guard 19594 | -5/Cetus | Allies destroyed Cetus Guard 19601 | -5/Cetus | Allies destroyed Cetus Guard 19631 | -5/Cetus | Lost 3 allies 19684 | -5/Cetus | Escorted A7 to Cetus Mainframe 19696 | -5/Cetus | Started Cetus Manufacturing Module 19721 | -5/Cetus | Manufactured an Enhanced Grunt 19746 | -5/Cetus | Manufactured an Enhanced Grunt 19771 | -5/Cetus | Manufactured an Enhanced Grunt 19771 | -5/Cetus | Discovered new exit (range 15) 19796 | -5/Cetus | Manufactured an Enhanced Grunt 19821 | -5/Cetus | Manufactured an Enhanced Grunt 19878 | -5/Cetus | Entered Archives 19878 | -5/Archives | Accompanied by 10 allies (A7) 19883 | -5/Archives | Received a hacking code to weaken MAIN.C 19899 | -5/Archives | Unable to access archive contents 19900 | -5/Archives | Core integrity fell below 50% 19917 | -5/Archives | Discovered new exit (range 14) 19924 | -5/Archives | Unable to access archive contents 19929 | -5/Archives | Discovered new exit (range 16) 19936 | -5/Archives | Unable to access archive contents 19941 | -5/Archives | Discovered new exit (range 14) 19950 | -5/Archives | Unable to access archive contents 20102 | -5/Archives | Entered Hub_04(d) 20102 | -5/Hub_04(d) | Accompanied by 9 allies 20143 | -5/Hub_04(d) | Garrison activated, responded to threat 20173 | -5/Hub_04(d) | Identified exit to Garrison 20173 | -5/Hub_04(d) | Entered Garrison 20196 | -5/Garrison | Lost 7 allies 20342 | -5/Garrison | Triggered checkpoint 20350 | -5/Garrison | Triggered checkpoint 20385 | -5/Garrison | Destroyed B-75 Beast 20420 | -5/Garrison | Destroyed 9 combat bots 20551 | -5/Garrison | Triggered checkpoint 20585 | -5/Garrison | Build established: Scavenger-Skirmisher 20607 | -5/Garrison | Triggered checkpoint 20662 | -5/Garrison | Triggered checkpoint 20696 | -5/Garrison | Destroyed 9 combat bots 20946 | -5/Garrison | Learned Factory security intel 21055 | -5/Garrison | Discovered new exit (range 5) 21063 | -5/Garrison | Build established: Scavenger-Tank 21129 | -5/Garrison | Triggered checkpoint 21150 | -5/Garrison | Rescued a captive Derelict 21156 | -5/Garrison | Rescued a captive Derelict 21250 | -5/Garrison | Discovered new exit (range 15) 21285 | -5/Garrison | Expanded RIF knowledge: Watcher Feeds 21395 | -5/Garrison | Garrison Relay disabled 21477 | -5/Garrison | Discovered new exit (range 9) 21505 | -5/Garrison | Spotted B-75 Beast 21509 | -5/Garrison | Spotted B-86 Titan 21514 | -5/Garrison | Rewired B-90 Cyclops 21519 | -5/Garrison | Rewired B-90 Cyclops 21520 | -5/Garrison | Allies destroyed B-75 Beast 21602 | -5/Garrison | Entered Factory 21602 | -4/Factory | Accompanied by 2 allies 21602 | -4/Factory | Evolved 2 slots: Propulsion x1, Utility x1 21664 | -4/Factory | P-70 Sage assimilated allied 4M-X6X(l) 21674 | -4/Factory | Garrison activated, responded to threat 21772 | -4/Factory | Lost 3 parts (1u2w) 21799 | -4/Factory | Destroyed 7 combat bots 22020 | -4/Factory | Discovered new exit (range 4) 22072 | -4/Factory | Identified exit to Upper Caves 22692 | -4/Factory | Repaired Imp. Heavy Armor Plating 22750 | -4/Factory | Repaired Adv. Cooling System 22845 | -4/Factory | Garrison activated, responded to threat 22925 | -4/Factory | Entered Upper Caves 23438 | -4/Upper Caves | Attracted the attention of an 0b10 checkpoint 23554 | -4/Upper Caves | Discovered new exit (range 6) 23560 | -4/Upper Caves | Entered another Upper Caves area 23570 | -4/Upper Caves | Learned Research emergency access door positions 23663 | -4/Upper Caves | Attracted the attention of an 0b10 outpost 23743 | -4/Upper Caves | Lost 3 parts (1p2u) 23791 | -4/Upper Caves | Learned location of Quarantine (-2) 23830 | -4/Upper Caves | Discovered new exit (range 6) 23883 | -4/Upper Caves | Spotted B-86 Titan 23982 | -4/Upper Caves | Entered Research 23982 | -3/Research | Evolved 2 slots: Propulsion x1, Utility x1 24036 | -3/Research | Identified exit to Garrison 24036 | -3/Research | Entered Garrison 24334 | -3/Garrison | Triggered checkpoint 24392 | -3/Garrison | Garrison Relay disabled 24624 | -3/Garrison | Spotted B-86 Titan 24651 | -3/Garrison | Destroyed B-86 Titan 24702 | -3/Garrison | Triggered checkpoint 24743 | -3/Garrison | Lost 4 allies 24778 | -3/Garrison | Found Unknown Device 24778 | -3/Garrison | Identified Quantum Capacitor 24876 | -3/Garrison | Triggered checkpoint 24988 | -3/Garrison | Discovered new exit (range 10) 25016 | -3/Garrison | Triggered checkpoint 25091 | -3/Garrison | Expanded RIF knowledge: Patrol Navigation 25118 | -3/Garrison | Garrison Relay disabled 25290 | -3/Garrison | Expanded RIF knowledge: Coupler Efficiency 25441 | -3/Garrison | Entered Research 25441 | -3/Research | Accompanied by 3 allies 25789 | -3/Research | Repaired Hrd. Heavy Armor Plating 26127 | -3/Research | Identified exit to Garrison 26130 | -3/Research | Entered Garrison 26130 | -3/Garrison | Accompanied by 2 allies 26196 | -3/Garrison | Triggered checkpoint 26351 | -3/Garrison | Garrison Relay disabled 26441 | -3/Garrison | Q-Series assembled to engage unique threat in Research 26553 | -3/Garrison | Spotted B-86 Titan 26556 | -3/Garrison | Triggered checkpoint 26617 | -3/Garrison | Destroyed B-86 Titan 26733 | -3/Garrison | Q-Series assembled to engage unique threat in Research 26790 | -3/Garrison | Triggered checkpoint 26867 | -3/Garrison | Triggered checkpoint 27193 | -3/Garrison | Triggered checkpoint 27261 | -3/Garrison | Q-Series assembled to engage unique threat in Research 27402 | -3/Garrison | Discovered new exit (range 10) 27416 | -3/Garrison | Entered Research 27416 | -2/Research | Evolved 2 slots: Utility x2 27480 | -2/Research | Found Prototype Processor 27480 | -2/Research | Identified Exp. Core Analyzer 27665 | -2/Research | Identified exit to DSF 27667 | -2/Research | Entered DSF 27667 | -2/DSF | Met a pair of Sappers preparing to destroy DSF 27687 | -2/DSF | Additional patrols routed to DSF 27733 | -2/DSF | Discovered new exit (range 14) 27753 | -2/DSF | Entered Access 27753 | -1/Access | Evolved 2 slots: Propulsion x2 28382 | -1/Access | Spotted B-99 Colossus 28429 | -1/Access | Destroyed B-99 Colossus 28439 | -1/Access | Spotted B-99 Colossus 28444 | -1/Access | Lost 11 parts (3n5u3w) 28471 | -1/Access | Destroyed B-99 Colossus 28495 | -1/Access | Lost 7 parts (1p1n2u3w) 28498 | -1/Access | Found Hvy. Reflective Plating 28518 | -1/Access | Found Prototype Ballistic Gun 28519 | -1/Access | Identified Multirail 28543 | -1/Access | Discovered new exit (range 5) 29427 | -1/Access | System corruption reached 10% 29574 | -1/Access | Destroyed 10 combat bots 29725 | -1/Access | Lost 10 parts (4n3u3w) 29952 | -1/Access | Lost 4 parts (4u) 30109 | -1/Access | Core integrity fell below 50% 30204 | -1/Access | Build established: Scavenger-Gunner 30253 | -1/Access | First assault squad dispatched 30518 | -1/Access | System corruption reached 30% 30545 | -1/Access | Found Quantum Capacitor 30594 | *** | Escaped! Last Messages --------------- 30528_ Overheating: Phase Gun damaged (-20). 30530_ X-87 Electro destroyed. 30531_ U-05 Engineer builds a Wall. 30536_ >> Watcher Feeds: Feed link from W-44 Eye lost. 30540_ Ended siege mode. 30544_ System corrupted: Matter fused (-5). 30545_ Acquired Quantum Capacitor. 30547_ Acquired 15 matter. 30547_ U-05 Engineer builds a Wall. 30551_ Acquired Quantum Reactor. 30552_ U-05 Engineer builds a Wall. 30554_ Acquired Unknown Device. 30557_ K-01 Serf collects debris. 30561_ System corrupted: Matter fused (-7). 30561_ Acquired 7 matter. 30562_ K-01 Serf collects debris. 30584_ System corrupted: Matter fused (-8). [Achievement: Torch] [Achievement: Victory By Combat] Map ----- +----------------------------------------------------+ | ??# # # ############## #???????????? | | ??# # # #??################???????????? | | ??# # # #??# #####???###???????? | | ### # ] "" # #??? # ] #???????? | | # # """" # #???"" # #???????? | | + # """" + #????" # " #???????? | | # #= """" # #????T # """ #???????? | | # # """" # #????? # """ #???????? | | # + """" # #????? # " ????????? | | # # "" # #?????? # ??????????? | | # # "" # ####??? # ????????????? | | # ##"########" "#"####""#"!###+"#####????????? | | # %% %! |%! #???###### | | ### %*= !% =%! [ = #???# | | ??####################"#######"####### #???# | | ?????????????????????###?????????????# #???# | | ?????????????????????????????????????# #???# ! | | ###??????????????????????????????????# #???# = | | #??????????????????????????????????# #???# | | ##?????????????????????????????????# #???# | | "#?????##########?##########"####### #???# | | % ##?????# %% """ " #???###### | | ^ "#?????#% " #????????? | | ######## % """" """"" " #????????? | | %# "??" " "??" #????????? | | !# % % "??" " "@ "??" %[ #????????? | | %"% "??" " "" "??" ==%=#????????? | | =%# "??" " "??" = *#????????? | | !=! %"# %! "??" """"" ?" [% %#????????? | | " "#" "??" ???? """" """ =#????????? | | ##" %% ### "??" ????? """"T""" #????????? | | %#?#########??###?????##"####### #????????? | | #?????????????????????????????# #????????? | | #?????????????????????????????# #????##### | | #?????????????????????????????# #????# | | ########?????????????????????????????# #????# | | # ?????????????????????????????????# #????# ## | | # ??????????????????????????????????# #????# #? | | + ???????????????????????????????????# #????# #? | | # ????????????????????????????????## ##???# #? | | #? ""???????????????????????????????# ##### #? | | #???" ?????????????????????????????# "" ## | | #???? ??????????????????????????????# T" | | #???????????????????????????????????# #####+### | | #???????????????????????????????????# #### ] | | #???????????????????????????????????# #??# ! | | #???????????????????????????????????# #??# | | #???????????????????????????????????# #??# " " | | #???????????????????????????????????# #??# " " | | #???????????????????????????????????#%#??# ""G"" | +----------------------------------------------------+ Best States ------------- Heat Dissipation 147 Coolant Potential 80 Energy Generation 45 Energy Capacity 950 Matter Stores 300 Matter Capacity 450 Sight Range 16 Terrain Scan Density 10 EM Shielding 4 Armor Coverage 2400 Resistance: KI 20 Resistance: TH 25 Resistance: EX 50 Weapon Shielding 66 Weapon Cycling 20 Phase Shifting 15 Evasion (%) 80 Targeting Accuracy 6 Target Analysis 8 Core Analysis 6 Armor Integrity Analysis 30 Recoil Reduction 8 Offensive Hacking 20 Relay Coupler Types 2 Relay Coupler Value 90 Item Schematics ----------------- Remote Datajack | -7/Factory | Scanalyzed Imp. Heavy Treads | -7/Factory | Scanalyzed Imp. Heavy Armor Plating | -7/Factory | Scanalyzed Lyr. Heavy Armor Plating | -5/Extension | Hacked Robot Schematics ------------------ None Fabricated ------------ Imp. Heavy Treads | x1 | -6/Factory Repaired ---------- Imp. Heavy Armor Plating | 28% | -4/Factory Adv. Cooling System | 10% | -4/Factory Hrd. Heavy Armor Plating | 1% | -3/Research Studied --------- Lgt. Treads | -7/Factory | Hacked Gauss Rifle | -7/Factory | Hacked Gyrokinetic Inverter | -5/Factory | Hacked Alien Tech Used ----------------- None Achievements -------------- Can't Touch This Generalissimo Hackerman Killing Spree Like A Rock Main Advantage Oppo Buddy Preemptive Strike Pyromaniac Tailor-made Tank Life Torch Use The Force Versatile Victory By Combat Challenges ------------ None Game ------ Seed PulseWaveGreatsword Manual? 0 Play Time 05:46:59 Cumulative 59.7 hours Start 2026.09.16 @ 06:13:00 End 2026.09.16 @ 20:47:35 Sessions 3 Manual Loads 0 Difficulty Rogue Special Mode None Game No. 57 Rogue 54 Adventurer 3 Explorer 0 Win Type 0 Total 3 Types 2/1/0/0/0/0/0/0/0/0 Lore% 50 Gallery% 42 Achievement% 44 Wizard Run 0 Options --------- Layout 1 ASCII 0 Keyboard 0 Movement Mouse Keybinds 0 Fullscreen 1 Font 32/SmallcapsGlow Map View 50x35 Zoom Use 0% Tactical HUD 1 Map Filters NONE Filters NONE Steam 1 RUN: e20d2731-11f0-4b6c-86e1-ab49cb2066cc